Workbook

Sheet Notes
C2: Introduction - SFCA2012 Submission Template
D4: Use this spreadsheet to record elemental analyses for submission to BCIS
D5: It can also be used to abstract costs and allocate final summary adjustments
D7: The Abstract worksheet can be used to abstract a BQ or schedule into elements
D8: The AnalysisSpreadCosts worksheet can be used to enter a previously prepared analysis and/or spread adjustments
D10: Before you start:
D11: Enter details of the project into the SuppInfoSheet and ProjectDetails worksheets
D12: Enter elemental specification text in Specification worksheet
D13: Enter any adjustments that may be appropriate:
D14: OH&P on Measured work or Measured work and prelims
D15: OH&P on Provisional sums
D16: OH&P on PC sums
D17: Any special 'Adjust late quotes'
D18: You can insert comments to document assumptions etc but these will not be included in the xml output.
D20: Abstract from BQ or schedule
D21: Use Abstract sheet
D22: Enter item reference in the appropriate Page column and the amount in the adjacent Amount column
D23: The 'Contract sum' in cell CU5 will show the total of the amounts you have added already entered
D24: The difference in cells CU6 and B3 show the difference between the contract sum you entered on the AnalysisSpreadCosts worksheet less all adjustments entered on that worksheet and the total entered so far
D26: Spread costs
D27: Use this worksheet whether or not you used the abstract worksheet
D28: Select from the pull-down list in cell F1 whether adjustments are to be spread across trades or trades plus prelims
D29: The results from the Abstract will be written to the cells shaded blue in this worksheet
D30: Enter any values you want from other sources into the yellow shaded cells
D31: The difference between the contract sum you entered and the total of the analysis is shown in cell F86
D33: Write XML file
D34: When you have completed and checked the calculations you can export the analysis as an XML file
D35: The steps are:
D36: Save the workbook (just to be safe) as an Excel Macro-Enabled Workbook (*.xlsm) (we suggest you use the Reference as a file name)
D37: Click on the 'Export to XML' button at the top left of the AnalysisSpreadCosts worksheet
D38: Select the folder and file name for the XML file (if you entered the reference it should do this for you - extension must be .xml)
D39: A dialogue box will confirm the file has been written
D42: Revised: | E42: 2022-10-20
D43: Copyright: | E43: BCIS 2022

Sheet SuppInfoSheet
B2: Supplementary Information Sheet
B4: 1 | C4: Job Title | J4: Building Function | K4: 1 | M4: =INDEX(BuildingFunctionID,K4) -> 0 | O4: =IFERROR(INDEX(BuildingFunctionCode,$K$4),"") -> 0 | P4: =IFERROR(INDEX(BuildingFunctionDescription,$K$4),"") -> 0
B6: 2 | C6: Reference
B8: 3 | C8: Date for Receipt of Tenders | E8: 2022-10-26 | M8: =INDEX(DateFormatID,IF(N8,1,2)) -> 1737 | N8: TRUE
B10: 4 | C10: Base Date | M10: =INDEX(DateFormatID,IF(N10,1,2)) -> 1737 | N10: TRUE
B12: 5 | C12: Date of Acceptance | M12: =INDEX(DateFormatID,IF(N12,1,2)) -> 1737 | N12: TRUE
B14: 6 | C14: Date of Possession: | M14: =INDEX(DateFormatID,IF(N14,1,2)) -> 1737 | N14: TRUE
B17: 7 | C17: Location | M17: FALSE | N17: =IF(M17,"",D17) -> 0
C19: Postcode | M19: =IF(M17,"",UPPER(E19)) ->  | N19: =IF(NOT(M17),"",D17&" "&UPPER(E19) ) -> 
B21: 8 | C21: Local Authority District
B23: 9 | C23: Client | J23: Client type | K23: 1 | M23: =INDEX(ClientID,K23) -> 0
B25: 10 | C25: Nr of Storeys | E25: Primary: | G25: Secondary:
C27: Basement storeys included in above
B29: 11 | C29: Type of Work: | M29: =INDEX(TypeOfWorkID,O29) -> 0 | O29: 1
B31: 12 | C31: Gross Internal Floor Area | E31: m²
B33: 13 | C33: Site Pitch: | D33: 1 | M33: =INDEX(SitePitchID,D33) -> 0
B35: 14 | C35: Ground Conditions: | D35: 1 | M35: =INDEX(GroundConditionsID,D35) -> 0
B37: 15 | C37: Water in excavation: | D37: 1 | M37: =INDEX(SiteWaterID,D37) -> 0
B39: 16 | C39: Existing State: | D39: 1 | M39: =INDEX(SitePreviousUseID,D39) -> 0
B41: 17 | C41: Working Space: | D41: 1 | M41: =INDEX(SiteWorkingSpaceID,D41) -> 0
C43: Split over more than one sites | M43: =IF(N43,SiteDividedID,0) -> 0 | N43: FALSE | O43: =IF(N43,2,0) -> 0
B45: 18 | C45: Access: | D45: 1 | M45: =INDEX(SiteAccessID,D45) -> 0
B47: 19 | C47: Other Comments on Site
B49: 20 | C49: Market Conditions
B51: 21 | C51: If Lowest Tender was not accepted, please explain why not
B53: 22 | C53: If Accepted Tender was adjusted, please explain how | J53: Tender amended | K53: 1 | M53: =INDEX(Lookup!C148:C167,K53) -> 0
B55: 23 | C55: Tender Sum | F55: Contract Sum
B57: 24 | C57: Selection of Contractor: | D57: 1 | M57: =INDEX(SelectionOfContractorID,D57) -> 0
B59: 25 | C59: Number of Tenders | D59: Issued: | F59: Received:
B61: 26 | C61: Form of Contract | M61: =INDEX(ContractID,O61) -> 0 | O61: 1
B63: 27 | C63: Contract Period in Bill | F63: Weeks
C65: Offered by Contractor | F65: Weeks
C67: Agreed | F67: Weeks
B69: 28 | C69: Please List Tenders Received by Value
D70: 1
D71: 2
D72: 3
D73: 4
D74: 5
D75: 6
D76: 7
D77: 8
B79: 29 | C79: Functional Unit | D79: Unit | G79: Quantity
C80: i) | D80: 1 | K80: =IF(AND(D80>1,G80=0),"Unit set without quantity","")&IF(AND(D80=1,G80>0),"Select functional unit","") -> 
C81: ii) | D81: 1 | K81: =IF(AND(D81>1,G81=0),"Unit set without quantity","")&IF(AND(D81=1,G81>0),"Select functional unit","") -> 
C82: iii) | D82: 1
C83: iv) | D83: 1
B86: 30 | C86: Does BCIS have your permission to publish | P86: =IFERROR(INDEX(PublicationSecurityDescription,$D88),"") -> 0
C88: Security | D88: 1
B90: 31 | C90: Have any details of the project been submitted to BCIS previously?
B92: 32 | C92: Building Accreditation Scores:
C94: BREEAM Rating: | E94: 1 | M94: =INDEX(BREEAMID,E94) -> 0
C95: Code for Sustainable Homes Level: | E95: 1 | M95: =INDEX(CSHID,E95) -> 0
C96: SAP Rating: | E96: 1 | M96: =INDEX(SAPID,E96) -> 0
C97: Listed buildings: | E97: 1 | M97: =INDEX(SAPID,E97) -> 0
C98: BIM Compliant: | E98: 1 | M98: =INDEX(SAPID,E98) -> 0
B101: 33 | C101: Carbon emissions | D101: Basis | H101: Result
D102: 1 | K102: =IF(AND(Carbon1Index>1,Carbon1Text=0),"Basis set without result","")&IF(AND(Carbon1Index=1,Carbon1Text>0),"Select basis of result","") ->  | M102: =INDEX(BasisOfCarbonID,D102) -> 0
D103: 1 | K103: =IF(AND(Carbon2Index>1,Carbon2Text=0),"Basis set without result","")&IF(AND(Carbon2Index=1,Carbon2Text>0),"Select basis of result","") ->  | M103: =INDEX(BasisOfCarbonID,D103) -> 0

Sheet ProjectDetails
B1: PROJECT DETAILS
C3: BCIS Construction Code | D3: 1 | I3: =IFERROR(INDEX(PublicationSecurityDescription,MATCH($N3,PublicationSecurityID,0)),"") -> 
C5: Number of units
C7: Basis of Cost | D7: 1
C9: Tender Documentation | D9: 1
C11: Fluctuations | D11: 1
C13: Complex Contract
C15: Project Description
C17: Accommodation and design
C19: CREDITS
C21: Submitted by
C22: Client
C23: Architect
C24: Quantity Surveyor
C25: Structural Engineer
C26: Services Engineer
C27: General Contractor

Sheet Specification
B1: SPECIFICATION
D3: Description | F3: Codes | I3: Ptr/ElementID | J3: SpecID | K3: Ref as text
C5: 1 | D5: =INDEX(SpecCodes,I5,4) -> Substructure | I5: =MATCH(C5,SpecCodeReference,0) -> 1 | K5: =IF(ISBLANK(C5),K4,TEXT(C5,"00.##")) -> 01.
F6: 1 | I6: =INDEX(ElementID,I5) -> 187 | J6: =INDEX(INDIRECT("SpecID_"&K6),F6,1) -> 0 | K6: 01.
F7: 1 | J7: 0 | K7: 01.
F8: 1 | J8: 0 | K8: 01.
F9: 1 | J9: 0 | K9: 01.
F10: 1 | J10: 0 | K10: 01.
F11: 1 | J11: 0 | K11: 01.
F12: 1 | J12: 0 | K12: 01.
F13: 1 | J13: 0 | K13: 01.
F14: 1 | J14: 0 | K14: 01.
F15: 1 | J15: 0 | K15: 01.
K16: 01.
C17: 2.01 | D17: =INDEX(SpecCodes,I17,4) -> Frame | I17: =MATCH(C17,SpecCodeReference,0) -> 47 | K17: 02.01
F18: 1 | I18: =INDEX(ElementID,I17) -> 188 | J18: =INDEX(INDIRECT("SpecID_"&K18),F18,1) -> 0 | K18: 02.01
F19: 1 | J19: 0 | K19: 02.01
F20: 1 | J20: 0 | K20: 02.01
F21: 1 | J21: 0 | K21: 02.01
F22: 1 | J22: 0 | K22: 02.01
F23: 1 | J23: 0 | K23: 02.01
F24: 1 | J24: 0 | K24: 02.01
F25: 1 | J25: 0 | K25: 02.01
F26: 1 | J26: 0 | K26: 02.01
F27: 1 | J27: 0 | K27: 02.01
K28: 02.01
C29: 2.02 | D29: =INDEX(SpecCodes,I29,4) -> Upper Floors | I29: =MATCH(C29,SpecCodeReference,0) -> 73 | K29: 02.02
F30: 1 | I30: =INDEX(ElementID,I29) -> 192 | J30: =INDEX(INDIRECT("SpecID_"&K30),F30,1) -> 0 | K30: 02.02
F31: 1 | J31: 0 | K31: 02.02
F32: 1 | J32: 0 | K32: 02.02
F33: 1 | J33: 0 | K33: 02.02
F34: 1 | J34: 0 | K34: 02.02
F35: 1 | J35: 0 | K35: 02.02
F36: 1 | J36: 0 | K36: 02.02
F37: 1 | J37: 0 | K37: 02.02
F38: 1 | J38: 0 | K38: 02.02
F39: 1 | J39: 0 | K39: 02.02
K40: 02.02
C41: 2.03 | D41: =INDEX(SpecCodes,I41,4) -> Roof | I41: =MATCH(C41,SpecCodeReference,0) -> 84 | K41: 02.03
F42: 1 | I42: =INDEX(ElementID,I41) -> 199 | J42: =INDEX(INDIRECT("SpecID_"&K42),F42,1) -> 0 | K42: 02.03
F43: 1 | J43: 0 | K43: 02.03
F44: 1 | J44: 0 | K44: 02.03
F45: 1 | J45: 0 | K45: 02.03
F46: 1 | J46: 0 | K46: 02.03
F47: 1 | J47: 0 | K47: 02.03
F48: 1 | J48: 0 | K48: 02.03
F49: 1 | J49: 0 | K49: 02.03
F50: 1 | J50: 0 | K50: 02.03
F51: 1 | J51: 0 | K51: 02.03
K52: 02.03
C53: 2.04 | D53: =INDEX(SpecCodes,I53,4) -> Stairs | I53: =MATCH(C53,SpecCodeReference,0) -> 157 | K53: 02.04
F54: 1 | I54: =INDEX(ElementID,I53) -> 204 | J54: =INDEX(INDIRECT("SpecID_"&K54),F54,1) -> 0 | K54: 02.04
F55: 1 | J55: 0 | K55: 02.04
F56: 1 | J56: 0 | K56: 02.04
F57: 1 | J57: 0 | K57: 02.04
F58: 1 | J58: 0 | K58: 02.04
F59: 1 | J59: 0 | K59: 02.04
F60: 1 | J60: 0 | K60: 02.04
F61: 1 | J61: 0 | K61: 02.04
F62: 1 | J62: 0 | K62: 02.04
F63: 1 | J63: 0 | K63: 02.04
K64: 02.04
C65: 2.05 | D65: =INDEX(SpecCodes,I65,4) -> External Walls | I65: =MATCH(C65,SpecCodeReference,0) -> 182 | K65: 02.05
F66: 1 | I66: =INDEX(ElementID,I65) -> 212 | J66: =INDEX(INDIRECT("SpecID_"&K66),F66,1) -> 0 | K66: 02.05
F67: 1 | J67: 0 | K67: 02.05
F68: 1 | J68: 0 | K68: 02.05
F69: 1 | J69: 0 | K69: =IF(ISBLANK(C69),K68,TEXT(C69,"00.##")) -> 02.05
F70: 1 | J70: 0 | K70: 02.05
F71: 1 | J71: 0 | K71: 02.05
F72: 1 | J72: 0 | K72: 02.05
F73: 1 | J73: 0 | K73: 02.05
F74: 1 | J74: 0 | K74: 02.05
F75: 1 | J75: 0 | K75: 02.05
K76: 02.05
C77: 2.06 | D77: =INDEX(SpecCodes,I77,4) -> External Windows and Doors | I77: =MATCH(C77,SpecCodeReference,0) -> 245 | K77: 02.06
F78: 1 | I78: =INDEX(ElementID,I77) -> 215 | J78: =INDEX(INDIRECT("SpecID_"&K78),F78,1) -> 0 | K78: 02.06
F79: 1 | J79: 0 | K79: 02.06
F80: 1 | J80: 0 | K80: 02.06
F81: 1 | J81: 0 | K81: 02.06
F82: 1 | J82: 0 | K82: 02.06
F83: 1 | J83: 0 | K83: 02.06
F84: 1 | J84: 0 | K84: 02.06
F85: 1 | J85: 0 | K85: 02.06
F86: 1 | J86: 0 | K86: 02.06
F87: 1 | J87: 0 | K87: 02.06
K88: 02.06
C89: 2.07 | D89: =INDEX(SpecCodes,I89,4) -> Internal Walls and Partitions | I89: =MATCH(C89,SpecCodeReference,0) -> 305 | K89: 02.07
F90: 1 | I90: =INDEX(ElementID,I89) -> 220 | J90: =INDEX(INDIRECT("SpecID_"&K90),F90,1) -> 0 | K90: 02.07
F91: 1 | J91: 0 | K91: 02.07
F92: 1 | J92: 0 | K92: 02.07
F93: 1 | J93: 0 | K93: 02.07
F94: 1 | J94: 0 | K94: 02.07
F95: 1 | J95: 0 | K95: 02.07
F96: 1 | J96: 0 | K96: 02.07
F97: 1 | J97: 0 | K97: 02.07
F98: 1 | J98: 0 | K98: 02.07
F99: 1 | J99: 0 | K99: 02.07
K100: 02.07
C101: 2.08 | D101: =INDEX(SpecCodes,I101,4) -> Internal Doors | I101: =MATCH(C101,SpecCodeReference,0) -> 341 | K101: 02.08
F102: 1 | I102: =INDEX(ElementID,I101) -> 221 | J102: =INDEX(INDIRECT("SpecID_"&K102),F102,1) -> 0 | K102: 02.08
F103: 1 | J103: 0 | K103: 02.08
F104: 1 | J104: 0 | K104: 02.08
F105: 1 | J105: 0 | K105: 02.08
F106: 1 | J106: 0 | K106: 02.08
F107: 1 | J107: 0 | K107: 02.08
F108: 1 | J108: 0 | K108: 02.08
F109: 1 | J109: 0 | K109: 02.08
F110: 1 | J110: 0 | K110: 02.08
F111: 1 | J111: 0 | K111: 02.08
K112: 02.08
C113: 3.01 | D113: =INDEX(SpecCodes,I113,4) -> Wall Finishes | I113: =MATCH(C113,SpecCodeReference,0) -> 357 | K113: 03.01
F114: 1 | I114: =INDEX(ElementID,I113) -> 223 | J114: =INDEX(INDIRECT("SpecID_"&K114),F114,1) -> 0 | K114: 03.01
F115: 1 | J115: 0 | K115: 03.01
F116: 1 | J116: 0 | K116: 03.01
F117: 1 | J117: 0 | K117: 03.01
F118: 1 | J118: 0 | K118: 03.01
F119: 1 | J119: 0 | K119: 03.01
F120: 1 | J120: 0 | K120: 03.01
F121: 1 | J121: 0 | K121: 03.01
F122: 1 | J122: 0 | K122: 03.01
F123: 1 | J123: 0 | K123: 03.01
K124: 03.01
C125: 3.02 | D125: =INDEX(SpecCodes,I125,4) -> Floor Finishes | I125: =MATCH(C125,SpecCodeReference,0) -> 382 | K125: 03.02
F126: 1 | I126: =INDEX(ElementID,I125) -> 226 | J126: =INDEX(INDIRECT("SpecID_"&K126),F126,1) -> 0 | K126: 03.02
F127: 1 | J127: 0 | K127: 03.02
F128: 1 | J128: 0 | K128: 03.02
F129: 1 | J129: 0 | K129: 03.02
F130: 1 | J130: 0 | K130: 03.02
F131: 1 | J131: 0 | K131: 03.02
F132: 1 | J132: 0 | K132: 03.02
F133: 1 | J133: 0 | K133: =IF(ISBLANK(C133),K132,TEXT(C133,"00.##")) -> 03.02
F134: 1 | J134: 0 | K134: 03.02
F135: 1 | J135: 0 | K135: 03.02
K136: 03.02
C137: 3.03 | D137: =INDEX(SpecCodes,I137,4) -> Ceiling Finishes | I137: =MATCH(C137,SpecCodeReference,0) -> 412 | K137: 03.03
F138: 1 | I138: =INDEX(ElementID,I137) -> 230 | J138: =INDEX(INDIRECT("SpecID_"&K138),F138,1) -> 0 | K138: 03.03
F139: 1 | J139: 0 | K139: 03.03
F140: 1 | J140: 0 | K140: 03.03
F141: 1 | J141: 0 | K141: 03.03
F142: 1 | J142: 0 | K142: 03.03
F143: 1 | J143: 0 | K143: 03.03
F144: 1 | J144: 0 | K144: 03.03
F145: 1 | J145: 0 | K145: 03.03
F146: 1 | J146: 0 | K146: 03.03
F147: 1 | J147: 0 | K147: 03.03
K148: 03.03
C149: 4 | D149: =INDEX(SpecCodes,I149,4) -> Fittings, Furnishings and Equipment | I149: =MATCH(C149,SpecCodeReference,0) -> 445 | K149: 04.
F150: 1 | I150: =INDEX(ElementID,I149) -> 240 | J150: =INDEX(INDIRECT("SpecID_"&K150),F150,1) -> 0 | K150: 04.
F151: 1 | J151: 0 | K151: 04.
F152: 1 | J152: 0 | K152: 04.
F153: 1 | J153: 0 | K153: 04.
F154: 1 | J154: 0 | K154: 04.
F155: 1 | J155: 0 | K155: 04.
F156: 1 | J156: 0 | K156: 04.
F157: 1 | J157: 0 | K157: 04.
F158: 1 | J158: 0 | K158: 04.
F159: 1 | J159: 0 | K159: 04.
K160: 04.
C161: 5.01 | D161: =INDEX(SpecCodes,I161,4) -> Sanitary Installations | I161: =MATCH(C161,SpecCodeReference,0) -> 458 | K161: 05.01
F162: 1 | I162: =INDEX(ElementID,I161) -> 243 | J162: =INDEX(INDIRECT("SpecID_"&K162),F162,1) -> 0 | K162: 05.01
F163: 1 | J163: 0 | K163: 05.01
F164: 1 | J164: 0 | K164: 05.01
F165: 1 | J165: 0 | K165: 05.01
F166: 1 | J166: 0 | K166: 05.01
F167: 1 | J167: 0 | K167: 05.01
F168: 1 | J168: 0 | K168: 05.01
F169: 1 | J169: 0 | K169: 05.01
F170: 1 | J170: 0 | K170: 05.01
F171: 1 | J171: 0 | K171: 05.01
K172: 05.01
C173: 5.02 | D173: =INDEX(SpecCodes,I173,4) -> Services Equipment | I173: =MATCH(C173,SpecCodeReference,0) -> 465 | K173: 05.02
F174: 1 | I174: =INDEX(ElementID,I173) -> 244 | J174: =INDEX(INDIRECT("SpecID_"&K174),F174,1) -> 0 | K174: 05.02
F175: 1 | J175: 0 | K175: 05.02
F176: 1 | J176: 0 | K176: 05.02
F177: 1 | J177: 0 | K177: 05.02
F178: 1 | J178: 0 | K178: 05.02
F179: 1 | J179: 0 | K179: 05.02
F180: 1 | J180: 0 | K180: 05.02
F181: 1 | J181: 0 | K181: 05.02
F182: 1 | J182: 0 | K182: 05.02
F183: 1 | J183: 0 | K183: 05.02
K184: 05.02
C185: 5.03 | D185: =INDEX(SpecCodes,I185,4) -> Disposal Installations | I185: =MATCH(C185,SpecCodeReference,0) -> 498 | K185: 05.03
F186: 1 | I186: =INDEX(ElementID,I185) -> 248 | J186: =INDEX(INDIRECT("SpecID_"&K186),F186,1) -> 0 | K186: 05.03
F187: 1 | J187: 0 | K187: 05.03
F188: 1 | J188: 0 | K188: 05.03
F189: 1 | J189: 0 | K189: 05.03
F190: 1 | J190: 0 | K190: 05.03
F191: 1 | J191: 0 | K191: 05.03
F192: 1 | J192: 0 | K192: 05.03
F193: 1 | J193: 0 | K193: 05.03
F194: 1 | J194: 0 | K194: 05.03
F195: 1 | J195: 0 | K195: 05.03
K196: 05.03
C197: 5.04 | D197: =INDEX(SpecCodes,I197,4) -> Water Installations | I197: =MATCH(C197,SpecCodeReference,0) -> 503 | K197: =IF(ISBLANK(C197),K196,TEXT(C197,"00.##")) -> 05.04
I198: =INDEX(ElementID,I197) -> 254 | K198: 05.04
K199: 05.04
K200: 05.04
K201: 05.04
K202: 05.04
... 377 more rows

Sheet Abstract
A1: Title: | B1: =JobTitle -> 0
A2: Reference: | B2: =AnalysisReference -> 0
A3: Difference: | B3: =CU6 -> 0
A4: Element | B4: 1 Substructure | D4: 2.01 Frame | F4: 2.02 Upper Floors | H4: 2.03 Roof | J4: 2.04 Stairs | L4: 2.05 External Walls | N4: 2.06 External Windows and Doors | P4: 2.07 Internal Walls and Partitions | R4: 2.08 Internal Doors | T4: 3.01 Wall Finishes | V4: 3.02 Floor Finishes | X4: 3.03 Ceiling Finishes | Z4: 4 Fittings, Furnishings and Equipment | AB4: 5.01 Sanitary Installations | AD4: 5.02 Services Equipment | AF4: 5.03 Disposal Installations | AH4: 5.04 Water Installations | AJ4: 5.05 Heat Source | AL4: 5.06 Space Heating and Air Conditioning | AN4: 5.07 Ventilating Systems | AP4: 5.08 Electrical Installations | AR4: 5.09 Fuel Installations | AT4: 5.1 Lift and Conveyor Installations | AV4: 5.11 Fire and Lightning Protection | AX4: 5.12 Communications and Security Installations | AZ4: 5.13 Special Installations | BB4: 5.14 Builder's Work in Connection with Services (BWIC) | BD4: 6 Prefabricated Buildings and Building Units | BF4: 7 Work to Existing Building | BH4: 8.01 Site Preparation Works | BJ4: 8.02 Roads, Paths, Pavings and Surfacings | BL4: 8.03 Soft Landscaping, Planting and Irrigation Systems | BN4: 8.04 Fencing, Railings and Walls | BP4: 8.05 External Fixtures | BR4: 8.06 External Drainage | BT4: 8.07 External Services | BV4: 8.08 Minor Building Works and Ancillary Buildings | BX4: 0.01 Toxic/Hazardous/Contaminated Material Treatment | BZ4: 0.02 Major Demolition Works | CB4: 0.03 Temporary Support to Adjacent Structures | CD4: 0.04 Specialist Groundworks | CF4: 0.05 Temporary Diversion Works | CH4: 0.06 Extraordinary Site Investigation | CJ4: 9 Preliminaries | CL4: 10 Main Contractor's Overheads and Profit | CN4: 11 Project/Design Team Fees | CP4: 12 Other Development/Project Costs | CR4: 13 Risk (Clients Contingencies) | CT4: Contract Sum
A5: Total | C5: =SUM(C7:C101) -> 0 | E5: =SUM(E7:E101) -> 0 | G5: =SUM(G7:G101) -> 0 | I5: =SUM(I7:I101) -> 0 | K5: =SUM(K7:K101) -> 0 | M5: =SUM(M7:M101) -> 0 | O5: =SUM(O7:O101) -> 0 | Q5: =SUM(Q7:Q101) -> 0 | S5: =SUM(S7:S101) -> 0 | U5: =SUM(U7:U101) -> 0 | W5: =SUM(W7:W101) -> 0 | Y5: =SUM(Y7:Y101) -> 0 | AA5: =SUM(AA7:AA101) -> 0 | AC5: =SUM(AC7:AC101) -> 0 | AE5: =SUM(AE7:AE101) -> 0 | AG5: =SUM(AG7:AG101) -> 0 | AI5: =SUM(AI7:AI101) -> 0 | AK5: =SUM(AK7:AK101) -> 0 | AM5: =SUM(AM7:AM101) -> 0 | AO5: =SUM(AO7:AO101) -> 0 | AQ5: =SUM(AQ7:AQ101) -> 0 | AS5: =SUM(AS7:AS101) -> 0 | AU5: =SUM(AU7:AU101) -> 0 | AW5: =SUM(AW7:AW101) -> 0 | AY5: =SUM(AY7:AY101) -> 0 | BA5: =SUM(BA7:BA101) -> 0 | BC5: =SUM(BC7:BC101) -> 0 | BE5: =SUM(BE7:BE101) -> 0 | BG5: =SUM(BG7:BG101) -> 0 | BI5: =SUM(BI7:BI101) -> 0 | BK5: =SUM(BK7:BK101) -> 0 | BM5: =SUM(BM7:BM101) -> 0 | BO5: =SUM(BO7:BO101) -> 0 | BQ5: =SUM(BQ7:BQ101) -> 0 | BS5: =SUM(BS7:BS101) -> 0 | BU5: =SUM(BU7:BU101) -> 0 | BW5: =SUM(BW7:BW101) -> 0 | BY5: =SUM(BY7:BY101) -> 0 | CA5: =SUM(CA7:CA101) -> 0 | CC5: =SUM(CC7:CC101) -> 0 | CE5: =SUM(CE7:CE101) -> 0 | CG5: =SUM(CG7:CG101) -> 0 | CI5: =SUM(CI7:CI101) -> 0 | CK5: =SUM(CK7:CK101) -> 0 | CM5: =SUM(CM7:CM101) -> 0 | CO5: =SUM(CO7:CO101) -> 0 | CQ5: =SUM(CQ7:CQ101) -> 0 | CS5: =SUM(CS7:CS101) -> 0 | CU5: =SUM(B5:CS5) -> 0
B6: Page | C6: Amount | D6: Page | E6: Amount | F6: Page | G6: Amount | H6: Page | I6: Amount | J6: Page | K6: Amount | L6: Page | M6: Amount | N6: Page | O6: Amount | P6: Page | Q6: Amount | R6: Page | S6: Amount | T6: Page | U6: Amount | V6: Page | W6: Amount | X6: Page | Y6: Amount | Z6: Page | AA6: Amount | AB6: Page | AC6: Amount | AD6: Page | AE6: Amount | AF6: Page | AG6: Amount | AH6: Page | AI6: Amount | AJ6: Page | AK6: Amount | AL6: Page | AM6: Amount | AN6: Page | AO6: Amount | AP6: Page | AQ6: Amount | AR6: Page | AS6: Amount | AT6: Page | AU6: Amount | AV6: Page | AW6: Amount | AX6: Page | AY6: Amount | AZ6: Page | BA6: Amount | BB6: Page | BC6: Amount | BD6: Page | BE6: Amount | BF6: Page | BG6: Amount | BH6: Page | BI6: Amount | BJ6: Page | BK6: Amount | BL6: Page | BM6: Amount | BN6: Page | BO6: Amount | BP6: Page | BQ6: Amount | BR6: Page | BS6: Amount | BT6: Page | BU6: Amount | BV6: Page | BW6: Amount | BX6: Page | BY6: Amount | BZ6: Page | CA6: Amount | CB6: Page | CC6: Amount | CD6: Page | CE6: Amount | CF6: Page | CG6: Amount | CH6: Page | CI6: Amount | CJ6: Page | CK6: Amount | CL6: Page | CM6: Amount | CN6: Page | CO6: Amount | CP6: Page | CQ6: Amount | CR6: Page | CS6: Amount | CT6: Difference | CU6: =CU5+OHPAddition+PCSumsTotal+PCSumsOHP+ProvSumsTotal+ProvSumsOHP+AdjustLateQuoteAddition-ContractSum -> 0

Sheet AnalysisSpreadCosts
C1: Spread over: | G1: measured work only | N1: ANALYSIS REF: | O1: =AnalysisReference -> 0 | AA1: =MATCH(G1,$AA$9:$AA$11,0) -> 1
F2: FLOOR AREA: | G2: =GIFAText -> 0 | H2: m2 | N2: CONTRACT SUM: | O2: =ContractSumText -> 0
C4: BILL/ELEMENT | D4: Legacy key | E4: Input element | F4: Costs included in | G4: Cost Analysis | I4: From Abstract | J4: Measured Work | K4: Measured Work | L4: Measured Work | M4: Measured Work | N4: Adjustments | O4: Prov Sums | P4: Prov Sums OHP | Q4: PC Sums | R4: PC Sums OHP | S4: Adjust | T4: Adjust Late Quote
N6: =CHOOSE(SpreadOption,SUM($I$71:$M$71),SUM($I$71:$M$73)) -> 0 | T6: =CHOOSE(SpreadOption,SUM($I$71:$S$71),SUM($I$71:$S$73)) -> 0
B7: 1 | C7: SUBSTRUCTURE | D7: 310 | E7: 1 | G7: =SUM(I7:T7) -> 0 | I7: =Abstract!$C$5 -> 0 | N7: =IF(OHPAcross>0,(SUM(I7:M7)/OHPAcross*OHPAddition),"") ->  | P7: =IF(ISERROR(O7/O$71*P$5),"",O7/O$71*P$5) ->  | R7: =IF(ISERROR(Q7/Q$71*R$5),"",Q7/Q$71*R$5) ->  | T7: =IF(AdjustLateQuoteAcross>0,SUM(I7:S7)/AdjustLateQuoteAcross*AdjustLateQuoteAddition,"") ->  | V7: Contract Breakdown
E8: 0
B9: 2 | C9: SUPERSTRUCTURE | D9: 400 | E9: 0 | V9: Measured work | W9: =W16-SUM(W10:W15) -> 0 | AA9: measured work only
B10: 2.01 | C10: Frame | D10: 320 | E10: 1 | G10: =SUM(I10:T10) -> 0 | I10: =Abstract!$E$5 -> 0 | N10: =IF(OHPAcross>0,(SUM(I10:M10)/OHPAcross*OHPAddition),"") ->  | P10: =IF(ISERROR(O10/O$71*P$5),"",O10/O$71*P$5) ->  | R10: =IF(ISERROR(Q10/Q$71*R$5),"",Q10/Q$71*R$5) ->  | T10: =IF(AdjustLateQuoteAcross>0,SUM(I10:S10)/AdjustLateQuoteAcross*AdjustLateQuoteAddition,"") ->  | V10: Provisional sums | W10: =O71 -> 0 | AA10: measured work and prelims
B11: 2.02 | C11: Upper Floors | D11: 330 | E11: 1 | G11: 0 | I11: =Abstract!$G$5 -> 0 | V11: Prime cost sums | W11: =Q71 -> 0
B12: 2.03 | C12: Roof | D12: 340 | E12: 1 | G12: 0 | I12: =Abstract!$I$5 -> 0 | V12: Preliminaries | W12: =G73 -> 0
B13: 2.04 | C13: Stairs | D13: 350 | E13: 1 | G13: 0 | I13: =Abstract!$K$5 -> 0 | V13: Overheads and profit | W13: =G75 -> 0
B14: 2.05 | C14: External Walls | D14: 360 | E14: 1 | G14: 0 | I14: =Abstract!$M$5 -> 0 | V14: Contingencies | W14: =G84 -> 0
B15: 2.06 | C15: External Windows and Doors | D15: 370 | E15: 1 | G15: 0 | I15: =Abstract!$O$5 -> 0 | V15: Contractor design fees | W15: =G80 -> 0
B16: 2.07 | C16: Internal Walls and Partitions | D16: 380 | E16: 1 | G16: 0 | I16: =Abstract!$Q$5 -> 0 | V16: Contract sum | W16: =G87-G82 -> 0
B17: 2.08 | C17: Internal Doors | D17: 390 | E17: 1 | G17: 0 | I17: =Abstract!$S$5 -> 0 | V17: Contract sum excludes other development costs (12.)
C18: Total Superstructure | E18: 0 | G18: =SUM(I18:T18) -> 0 | I18: =SUM(I10:I17) -> 0 | J18: =SUM(J10:J17) -> 0 | K18: 0 | L18: 0 | M18: 0 | N18: 0 | O18: 0 | P18: =SUM(P10:P17) -> 0 | Q18: 0 | R18: =SUM(R10:R17) -> 0 | S18: 0 | T18: 0
E19: 0
B20: 3 | C20: FINISHES | D20: 440 | E20: 0 | T20: =IF(ISERROR((I20:S20)/AdjustLateQuoteAcross*AdjustLateQuoteAddition),"",(I20:S20)/AdjustLateQuoteAcross*AdjustLateQuoteAddition) -> 
B21: 3.01 | C21: Wall Finishes | D21: 410 | E21: 1 | G21: =SUM(I21:T21) -> 0 | I21: =Abstract!$U$5 -> 0 | N21: =IF(OHPAcross>0,(SUM(I21:M21)/OHPAcross*OHPAddition),"") ->  | P21: =IF(ISERROR(O21/O$71*P$5),"",O21/O$71*P$5) ->  | R21: =IF(ISERROR(Q21/Q$71*R$5),"",Q21/Q$71*R$5) ->  | T21: =IF(AdjustLateQuoteAcross>0,SUM(I21:S21)/AdjustLateQuoteAcross*AdjustLateQuoteAddition,"") -> 
B22: 3.02 | C22: Floor Finishes | D22: 420 | E22: 1 | G22: =SUM(I22:T22) -> 0 | I22: =Abstract!$W$5 -> 0 | N22: =IF(OHPAcross>0,(SUM(I22:M22)/OHPAcross*OHPAddition),"") ->  | P22: =IF(ISERROR(O22/O$71*P$5),"",O22/O$71*P$5) ->  | R22: =IF(ISERROR(Q22/Q$71*R$5),"",Q22/Q$71*R$5) ->  | T22: =IF(AdjustLateQuoteAcross>0,SUM(I22:S22)/AdjustLateQuoteAcross*AdjustLateQuoteAddition,"") -> 
B23: 3.03 | C23: Ceiling Finishes | D23: 430 | E23: 1 | G23: =SUM(I23:T23) -> 0 | I23: =Abstract!$Y$5 -> 0 | N23: =IF(OHPAcross>0,(SUM(I23:M23)/OHPAcross*OHPAddition),"") ->  | P23: =IF(ISERROR(O23/O$71*P$5),"",O23/O$71*P$5) ->  | R23: =IF(ISERROR(Q23/Q$71*R$5),"",Q23/Q$71*R$5) ->  | T23: =IF(AdjustLateQuoteAcross>0,SUM(I23:S23)/AdjustLateQuoteAcross*AdjustLateQuoteAddition,"") -> 
C24: Total Finishes | E24: 0 | G24: =SUM(I24:T24) -> 0 | I24: =SUM(I21:I23) -> 0 | J24: =SUM(J21:J23) -> 0 | K24: 0 | L24: 0 | M24: 0 | N24: 0 | O24: 0 | P24: =SUM(P21:P23) -> 0 | Q24: 0 | R24: =SUM(R21:R23) -> 0 | S24: 0 | T24: 0
E25: 0
B26: 4 | C26: FITTINGS, FURNISHINGS AND EQUIPMENT | D26: 450 | E26: 1 | G26: =SUM(I26:T26) -> 0 | I26: =Abstract!$AA$5 -> 0 | N26: =IF(OHPAcross>0,(SUM(I26:M26)/OHPAcross*OHPAddition),"") ->  | P26: =IF(ISERROR(O26/O$71*P$5),"",O26/O$71*P$5) ->  | R26: =IF(ISERROR(Q26/Q$71*R$5),"",Q26/Q$71*R$5) ->  | T26: =IF(AdjustLateQuoteAcross>0,SUM(I26:S26)/AdjustLateQuoteAcross*AdjustLateQuoteAddition,"") -> 
E27: 0
B28: 5 | C28: SERVICES | D28: 610 | E28: 0 | T28: =IF(ISERROR((I28:S28)/AdjustLateQuoteAcross*AdjustLateQuoteAddition),"",(I28:S28)/AdjustLateQuoteAcross*AdjustLateQuoteAddition) -> 
B29: 5.01 | C29: Sanitary Installations | D29: 460 | E29: 1 | G29: =SUM(I29:T29) -> 0 | I29: =Abstract!$AC$5 -> 0 | N29: =IF(OHPAcross>0,(SUM(I29:M29)/OHPAcross*OHPAddition),"") ->  | P29: =IF(ISERROR(O29/O$71*P$5),"",O29/O$71*P$5) ->  | R29: =IF(ISERROR(Q29/Q$71*R$5),"",Q29/Q$71*R$5) ->  | T29: =IF(AdjustLateQuoteAcross>0,SUM(I29:S29)/AdjustLateQuoteAcross*AdjustLateQuoteAddition,"") -> 
B30: 5.02 | C30: Services Equipment | D30: 470 | E30: 1 | G30: 0 | I30: =Abstract!$AE$5 -> 0
B31: 5.03 | C31: Disposal Installations | D31: 480 | E31: 1 | G31: 0 | I31: =Abstract!$AG$5 -> 0
B32: 5.04 | C32: Water Installations | D32: 490 | E32: 1 | G32: 0 | I32: =Abstract!$AI$5 -> 0
B33: 5.05 | C33: Heat Source | D33: 500 | E33: 1 | G33: 0 | I33: =Abstract!$AK$5 -> 0
B34: 5.06 | C34: Space Heating and Air Conditioning | D34: 510 | E34: 1 | G34: 0 | I34: =Abstract!$AM$5 -> 0
B35: 5.07 | C35: Ventilating Systems | D35: 520 | E35: 1 | G35: 0 | I35: =Abstract!$AO$5 -> 0
B36: 5.08 | C36: Electrical Installations | D36: 530 | E36: 1 | G36: 0 | I36: =Abstract!$AQ$5 -> 0
B37: 5.09 | C37: Fuel Installations | D37: 540 | E37: 1 | G37: 0 | I37: =Abstract!$AS$5 -> 0
B38: 5.10 | C38: Lift and Conveyor Installations | D38: 560 | E38: 1 | G38: 0 | I38: =Abstract!$AU$5 -> 0
B39: 5.11 | C39: Fire and Lightning Protection | D39: 570 | E39: 1 | G39: 0 | I39: =Abstract!$AW$5 -> 0
B40: 5.12 | C40: Communications and Security Installations | D40: 580 | E40: 1 | G40: 0 | I40: =Abstract!$AY$5 -> 0
B41: 5.13 | C41: Special Installations | D41: 590 | E41: 1 | G41: 0 | I41: =Abstract!$BA$5 -> 0
B42: 5.14 | C42: Builder's Work in Connection with Services (BWIC) | D42: 600 | E42: 1 | G42: 0 | I42: =Abstract!$BC$5 -> 0
C43: Total Services | E43: 0 | G43: 0 | I43: =SUM(I29:I42) -> 0 | J43: =SUM(J29:J42) -> 0 | K43: 0 | L43: 0 | M43: 0 | N43: 0 | O43: 0 | P43: 0 | Q43: 0 | R43: =SUM(R29:R42) -> 0 | S43: 0 | T43: 0
E44: 0
B45: 6 | C45: PREFABRICATED BUILDINGS AND BUILDING UNITS | D45: 620 | E45: 1 | G45: =SUM(I45:T45) -> 0 | I45: =Abstract!$BE$5 -> 0 | N45: =IF(OHPAcross>0,(SUM(I45:M45)/OHPAcross*OHPAddition),"") ->  | P45: =IF(ISERROR(O45/O$71*P$5),"",O45/O$71*P$5) ->  | R45: =IF(ISERROR(Q45/Q$71*R$5),"",Q45/Q$71*R$5) ->  | T45: =IF(AdjustLateQuoteAcross>0,SUM(I45:S45)/AdjustLateQuoteAcross*AdjustLateQuoteAddition,"") -> 
E46: 0
B47: 7 | C47: WORK TO EXISTING BUILDING | D47: 630 | E47: 1 | G47: =SUM(I47:T47) -> 0 | I47: =Abstract!$BG$5 -> 0 | N47: =IF(OHPAcross>0,(SUM(I47:M47)/OHPAcross*OHPAddition),"") ->  | P47: =IF(ISERROR(O47/O$71*P$5),"",O47/O$71*P$5) ->  | R47: =IF(ISERROR(Q47/Q$71*R$5),"",Q47/Q$71*R$5) ->  | T47: =IF(AdjustLateQuoteAcross>0,SUM(I47:S47)/AdjustLateQuoteAcross*AdjustLateQuoteAddition,"") -> 
E48: 0
C49: Total Building | E49: 0 | G49: =SUM(G7,G18,G24,G26,G43,G45,G47) -> 0 | I49: =SUM(I7,I18,I24,I26,I43,I45,I47) -> 0 | J49: =SUM(J7,J18,J24,J26,J43,J45,J47) -> 0 | K49: 0 | L49: 0 | M49: 0 | N49: 0 | O49: 0 | P49: 0 | Q49: 0 | R49: =SUM(R7,R18,R24,R26,R43,R45,R47) -> 0 | S49: 0 | T49: 0
E50: 0
B51: 8 | C51: EXTERNAL WORKS | D51: 740 | E51: 0 | T51: =IF(ISERROR((I51:S51)/AdjustLateQuoteAcross*AdjustLateQuoteAddition),"",(I51:S51)/AdjustLateQuoteAcross*AdjustLateQuoteAddition) -> 
B52: 8.01 | C52: Site Preparation Works | D52: 650 | E52: 1 | G52: =SUM(I52:T52) -> 0 | I52: =Abstract!$BI$5 -> 0 | N52: =IF(OHPAcross>0,(SUM(I52:M52)/OHPAcross*OHPAddition),"") ->  | P52: =IF(ISERROR(O52/O$71*P$5),"",O52/O$71*P$5) ->  | R52: =IF(ISERROR(Q52/Q$71*R$5),"",Q52/Q$71*R$5) ->  | T52: =IF(AdjustLateQuoteAcross>0,SUM(I52:S52)/AdjustLateQuoteAcross*AdjustLateQuoteAddition,"") -> 
B53: 8.02 | C53: Roads, Paths, Pavings and Surfacings | D53: 660 | E53: 1 | G53: =SUM(I53:T53) -> 0 | I53: =Abstract!$BK$5 -> 0
B54: 8.03 | C54: Soft Landscaping, Planting and Irrigation Systems | D54: 670 | E54: 1 | G54: 0 | I54: =Abstract!$BM$5 -> 0
B55: 8.04 | C55: Fencing, Railings and Walls | D55: 680 | E55: 1 | G55: 0 | I55: =Abstract!$BO$5 -> 0
B56: 8.05 | C56: External Fixtures | D56: 690 | E56: 1 | G56: =SUM(I56:T56) -> 0 | I56: =Abstract!$BQ$5 -> 0
B57: 8.06 | C57: External Drainage | D57: 700 | E57: 1 | G57: =SUM(I57:T57) -> 0 | I57: =Abstract!$BS$5 -> 0
B58: 8.07 | C58: External Services | D58: 720 | E58: 1 | G58: =SUM(I58:T58) -> 0 | I58: =Abstract!$BU$5 -> 0
B59: 8.08 | C59: Minor Building Works and Ancillary Buildings | D59: 730 | E59: 1 | G59: =SUM(I59:T59) -> 0 | I59: =Abstract!$BW$5 -> 0
C60: Total External Works | E60: 0 | G60: =SUM(I60:T60) -> 0 | I60: =SUM(I52:I59) -> 0 | J60: =SUM(J52:J59) -> 0 | K60: 0 | L60: 0 | M60: 0 | N60: =SUM(N52:N59) -> 0 | O60: 0 | P60: 0 | Q60: 0 | R60: =SUM(R52:R59) -> 0 | S60: 0 | T60: 0
E61: 0
B62: 0 | C62: FACILITATING WORKS | D62: 810 | E62: 0 | T62: =IF(ISERROR((I62:S62)/AdjustLateQuoteAcross*AdjustLateQuoteAddition),"",(I62:S62)/AdjustLateQuoteAcross*AdjustLateQuoteAddition) -> 
B63: 0.01 | C63: Toxic/Hazardous/Contaminated Material Treatment | D63: 750 | E63: 1 | G63: =SUM(I63:T63) -> 0 | I63: =Abstract!$BY$5 -> 0 | N63: =IF(OHPAcross>0,(SUM(I63:M63)/OHPAcross*OHPAddition),"") ->  | P63: =IF(ISERROR(O63/O$71*P$5),"",O63/O$71*P$5) ->  | R63: =IF(ISERROR(Q63/Q$71*R$5),"",Q63/Q$71*R$5) ->  | T63: =IF(AdjustLateQuoteAcross>0,SUM(I63:S63)/AdjustLateQuoteAcross*AdjustLateQuoteAddition,"") -> 
B64: 0.02 | C64: Major Demolition Works | D64: 760 | E64: 1 | G64: =SUM(I64:T64) -> 0 | I64: =Abstract!$CA$5 -> 0
B65: 0.03 | C65: Temporary Support to Adjacent Structures | D65: 770 | E65: 1 | G65: 0 | I65: =Abstract!$CC$5 -> 0
B66: 0.04 | C66: Specialist Groundworks | D66: 780 | E66: 1 | G66: 0 | I66: =Abstract!$CE$5 -> 0
B67: 0.05 | C67: Temporary Diversion Works | D67: 790 | E67: 1 | G67: =SUM(I67:T67) -> 0 | I67: =Abstract!$CG$5 -> 0
B68: 0.06 | C68: Extraordinary Site Investigation | D68: 800 | E68: 1 | G68: =SUM(I68:T68) -> 0 | I68: =Abstract!$CI$5 -> 0
C69: Total Facilitating works | E69: 0 | G69: =SUM(I69:T69) -> 0 | I69: =SUM(I63:I68) -> 0 | J69: =SUM(J63:J68) -> 0 | K69: 0 | L69: 0 | M69: 0 | N69: 0 | O69: 0 | P69: 0 | Q69: 0 | R69: 0 | S69: 0 | T69: 0
E70: 0
C71: Total (excl. Prelims and Contingencies) | E71: 0 | G71: =SUM(G49,G60,G69) -> 0 | I71: =SUM(I49,I60,I69) -> 0 | J71: =SUM(J49,J60,J69) -> 0 | K71: 0 | L71: 0 | M71: 0 | N71: 0 | O71: 0 | P71: 0 | Q71: 0 | R71: =SUM(R49,R60,R69) -> 0 | S71: 0 | T71: 0
E72: 0
B73: 9 | C73: PRELIMINARIES | D73: 820 | E73: 1 | G73: =SUM(I73:T73) -> 0 | I73: =Abstract!$CK$5 -> 0 | N73: =IF(AND(SpreadOption=2,OHPAcross>0),(SUM(I73:M73)/OHPAcross*OHPAddition),"") ->  | P73: =IF(ISERROR(O73/O$71*P$5),"",O73/O$71*P$5) ->  | R73: =IF(ISERROR(Q73/Q$71*R$5),"",Q73/Q$71*R$5) ->  | T73: =IF(AND(SpreadOption=2,AdjustLateQuoteAcross>0),SUM(I73:S73)/AdjustLateQuoteAcross*AdjustLateQuoteAddition,"") -> 
E74: 0
B75: 10 | C75: MAIN CONTRACTOR'S OVERHEADS AND PROFIT | D75: 830 | E75: 1 | G75: =SUM(I75:T75) -> 0 | I75: =Abstract!$CM$5 -> 0 | P75: =IF(ISERROR(O75/O$71*P$5),"",O75/O$71*P$5) ->  | R75: =IF(ISERROR(Q75/Q$71*R$5),"",Q75/Q$71*R$5) ->  | T75: =IF(AdjustLateQuoteAcross>0,SUM(I75:S75)/AdjustLateQuoteAcross*AdjustLateQuoteAddition,"") -> 
C76: % excl. Contingencies | E76: 0 | G76: =IFERROR((G73+G75)/G71,"?") -> ? | T76: =IF(ISERROR((I76:S76)/AdjustLateQuoteAcross*AdjustLateQuoteAddition),"",(I76:S76)/AdjustLateQuoteAcross*AdjustLateQuoteAddition) -> 
E77: 0 | T77: =IF(ISERROR((I77:S77)/AdjustLateQuoteAcross*AdjustLateQuoteAddition),"",(I77:S77)/AdjustLateQuoteAcross*AdjustLateQuoteAddition) -> 
C78: Total (less Design Fees) | D78: 840 | E78: 0 | G78: =SUM(G71,G73,G75) -> 0 | I78: =SUM(I71,I73,I75) -> 0 | J78: =SUM(J71,J73,J75) -> 0 | K78: =SUM(K71,K73,K75) -> 0 | L78: 0 | M78: 0 | N78: 0 | O78: 0 | P78: 0 | Q78: 0 | R78: =SUM(R71,R73,R75) -> 0 | S78: 0 | T78: 0
E79: 0
B80: 11 | C80: PROJECT/DESIGN TEAM FEES | D80: 850 | E80: 1 | G80: =SUM(I80:T80) -> 0 | I80: =Abstract!$CO$5 -> 0 | P80: =IF(ISERROR(O80/O$71*P$5),"",O80/O$71*P$5) ->  | R80: =IF(ISERROR(Q80/Q$71*R$5),"",Q80/Q$71*R$5) ->  | T80: =IF(AdjustLateQuoteAcross>0,SUM(I80:S80)/AdjustLateQuoteAcross*AdjustLateQuoteAddition,"") -> 
E81: 0
B82: 12 | C82: OTHER DEVELOPMENT/PROJECT COSTS | D82: 860 | E82: 1 | G82: =SUM(I82:T82) -> 0 | I82: =Abstract!$CQ$5 -> 0 | P82: =IF(ISERROR(O82/O$71*P$5),"",O82/O$71*P$5) ->  | R82: =IF(ISERROR(Q82/Q$71*R$5),"",Q82/Q$71*R$5) ->  | T82: =IF(AdjustLateQuoteAcross>0,SUM(I82:S82)/AdjustLateQuoteAcross*AdjustLateQuoteAddition,"") -> 
E83: 0
B84: 13 | C84: RISK (CLIENTS CONTINGENCIES) | D84: 870 | E84: 1 | G84: =SUM(I84:T84) -> 0 | I84: =Abstract!$CS$5 -> 0 | P84: =IF(ISERROR(O84/O$71*P$5),"",O84/O$71*P$5) ->  | R84: =IF(ISERROR(Q84/Q$71*R$5),"",Q84/Q$71*R$5) ->  | T84: =IF(AdjustLateQuoteAcross>0,SUM(I84:S84)/AdjustLateQuoteAcross*AdjustLateQuoteAddition,"") -> 
C85: % excl. Preliminaries | E85: 0 | G85: =IFERROR((G84/G71),"?") -> ? | T85: =IF(ISERROR((I85:S85)/AdjustLateQuoteAcross*AdjustLateQuoteAddition),"",(I85:S85)/AdjustLateQuoteAcross*AdjustLateQuoteAddition) -> 
E86: 0
C87: Total Contract Sum | E87: 0 | G87: =SUM(G78,G80,G82,G84) -> 0 | I87: =SUM(I78,I80,I82,I84) -> 0 | J87: =SUM(J78,J80,J82,J84) -> 0 | K87: =SUM(K78,K80,K82,K84) -> 0 | L87: 0 | M87: 0 | N87: 0 | O87: 0 | P87: 0 | Q87: 0 | R87: =SUM(R78,R80,R82,R84) -> 0 | S87: 0 | T87: 0
C89: Cost per m2: - Building | G89: =IF(GIFA>0,((1+G76)*G49)/GIFA,"") -> 
C91: Contract Sum (BoQ) | G91: =O2 -> 0
C92: Calculated Contract Sum | G92: =G87 -> 0
C93: Error | G93: =(G91-G92) -> 0

Sheet BuildingFunction (hidden)
B1: select | C1: id, Code, Description
B2: from | C2: BuildingFunctionCode
B3: where | C3: Code not like '[1-9]00.'
B4: order by Code
B6: Building Function
A7: Building Function | B7: id | C7: Code | D7: Description | E7: FormattedCode
A9: =TEXT(C9,"000.####")&" "&D9 -> 114. Railway station buildings | B9: 2 | C9: 114 | D9: Railway station buildings | E9: =TEXT(C9,"000.###") -> 114.
A10: 114.1 Station halls/concourses | B10: 359 | C10: 114.1 | D10: Station halls/concourses | E10: =TEXT(C10,"000.###") -> 114.1
A11: 114.2 Ticket office with waiting rooms, retail units and the like | B11: 360 | C11: 114.2 | D11: Ticket office with waiting rooms, retail units and the like | E11: 114.2
A12: 114.3 Ticket offices | B12: 361 | C12: 114.3 | D12: Ticket offices | E12: 114.3
A13: 114.4 Station waiting rooms | B13: 362 | C13: 114.4 | D13: Station waiting rooms | E13: 114.4
A14: 116. Railway lineside buildings | B14: 3 | C14: 116 | D14: Railway lineside buildings | E14: 116.
A15: 116.1 Railway signal boxes | B15: 4 | C15: 116.1 | D15: Railway signal boxes | E15: 116.1
A16: 116.2 Railway relay buildings/substations | B16: 5 | C16: 116.2 | D16: Railway relay buildings/substations | E16: 116.2
A17: 116.3 Railway lineside staff accommodation | B17: 6 | C17: 116.3 | D17: Railway lineside staff accommodation | E17: 116.3
A18: 117. Rail vehicle storage/repair buildings | B18: 7 | C18: 117 | D18: Rail vehicle storage/repair buildings | E18: 117.
A19: 122. Roads | B19: 8 | C19: 122 | D19: Roads | E19: 122.
A20: 124. Coach and bus stations | B20: 9 | C20: 124 | D20: Coach and bus stations | E20: 124.
A21: 125. Car parks (Multi-storey) | B21: 10 | C21: 125 | D21: Car parks (Multi-storey) | E21: 125.
A22: 125.4 Car parks (Underground) | B22: 11 | C22: 125.4 | D22: Car parks (Underground) | E22: 125.4
A23: 125.7 Car parks (Surface) | B23: 12 | C23: 125.7 | D23: Car parks (Surface) | E23: 125.7
A24: 126. Petrol stations | B24: 13 | C24: 126 | D24: Petrol stations | E24: 126.
A25: 126.5 Traffic control buildings | B25: 14 | C25: 126.5 | D25: Traffic control buildings | E25: 126.5
A26: 127. Road vehicle storage/repair buildings (incl car showrooms) | B26: 15 | C26: 127 | D26: Road vehicle storage/repair buildings (incl car showrooms) | E26: 127.
A27: 127.1 Garages | B27: 16 | C27: 127.1 | D27: Garages | E27: 127.1
A28: 127.11 Domestic scale garages | B28: 17 | C28: 127.11 | D28: Domestic scale garages | E28: 127.11
A29: 127.12 Vehicle storage buildings | B29: 18 | C29: 127.12 | D29: Vehicle storage buildings | E29: 127.12
A30: 127.13 Coach and bus depots | B30: 337 | C30: 127.13 | D30: Coach and bus depots | E30: 127.13
A31: 127.3 Vehicle showrooms | B31: 19 | C31: 127.3 | D31: Vehicle showrooms | E31: 127.3
A32: 127.31 Vehicle showrooms with workshops, garages, etc | B32: 20 | C32: 127.31 | D32: Vehicle showrooms with workshops, garages, etc | E32: 127.31
A33: 127.32 Vehicle showrooms without workshops, garages, etc | B33: 21 | C33: 127.32 | D33: Vehicle showrooms without workshops, garages, etc | E33: 127.32
A34: 127.4 Vehicle repair and maintenance buildings | B34: 22 | C34: 127.4 | D34: Vehicle repair and maintenance buildings | E34: 127.4
A35: 127.6 Car wash buildings | B35: 23 | C35: 127.6 | D35: Car wash buildings | E35: 127.6
A36: 134. Port and harbour buildings | B36: 24 | C36: 134 | D36: Port and harbour buildings | E36: 134.
A37: 136. Boat control buildings | B37: 25 | C37: 136 | D37: Boat control buildings | E37: 136.
A38: 137. Boat storage/repair buildings | B38: 26 | C38: 137 | D38: Boat storage/repair buildings | E38: 137.
A39: 144. Air transport terminal buildings | B39: 27 | C39: 144 | D39: Air transport terminal buildings | E39: 144.
A40: 144.1 Airport terminals including piers and satellites | B40: 363 | C40: 144.1 | D40: Airport terminals including piers and satellites | E40: 144.1
A41: 144.2 Specialist parts of air terminal buildings | B41: 364 | C41: 144.2 | D41: Specialist parts of air terminal buildings | E41: 144.2
A42: 144.3 Satellites, piers, link bridges and the like | B42: 365 | C42: 144.3 | D42: Satellites, piers, link bridges and the like | E42: 144.3
A43: 144.4 Baggage handling facilities | B43: 366 | C43: 144.4 | D43: Baggage handling facilities | E43: 144.4
A44: 144.5 Heliport buildings | B44: 367 | C44: 144.5 | D44: Heliport buildings | E44: 144.5
A45: 144.6 Cargo terminal buildings | B45: 368 | C45: 144.6 | D45: Cargo terminal buildings | E45: 144.6
A46: 146. Air traffic control buildings | B46: 28 | C46: 146 | D46: Air traffic control buildings | E46: 146.
A47: 147. Aircraft storage/repair buildings | B47: 29 | C47: 147 | D47: Aircraft storage/repair buildings | E47: 147.
A48: 152. Radio buildings | B48: 30 | C48: 152 | D48: Radio buildings | E48: 152.
A49: 152.5 Recording studios | B49: 31 | C49: 152.5 | D49: Recording studios | E49: 152.5
A50: 153. Television buildings | B50: 32 | C50: 153 | D50: Television buildings | E50: 153.
A51: 153.1 Television studios | B51: 33 | C51: 153.1 | D51: Television studios | E51: 153.1
A52: 153.2 Close circuit television control buildings | B52: 34 | C52: 153.2 | D52: Close circuit television control buildings | E52: 153.2
A53: 154.1 Telephone exchanges | B53: 35 | C53: 154.1 | D53: Telephone exchanges | E53: 154.1
A54: 154.2 Telegraph facilities | B54: 36 | C54: 154.2 | D54: Telegraph facilities | E54: 154.2
A55: 154.3 Telephone engineering centres, TSCVs | B55: 37 | C55: 154.3 | D55: Telephone engineering centres, TSCVs | E55: 154.3
A56: 156. Transmitting/receiving stations | B56: 38 | C56: 156 | D56: Transmitting/receiving stations | E56: 156.
A57: 157. Post offices, sorting offices | B57: 39 | C57: 157 | D57: Post offices, sorting offices | E57: 157.
A58: 157.1 Post Offices | B58: 40 | C58: 157.1 | D58: Post Offices | E58: 157.1
A59: 157.2 Sorting Offices | B59: 41 | C59: 157.2 | D59: Sorting Offices | E59: 157.2
A60: 162.1 Generator houses, power stations, etc | B60: 42 | C60: 162.1 | D60: Generator houses, power stations, etc | E60: 162.1
A61: 162.2 Sub-stations (electricity transmission) | B61: 43 | C61: 162.2 | D61: Sub-stations (electricity transmission) | E61: 162.2
A62: 162.3 Battery buildings (electricity storage) | B62: 44 | C62: 162.3 | D62: Battery buildings (electricity storage) | E62: 162.3
A63: 165.6 Gas supply control building | B63: 45 | C63: 165.6 | D63: Gas supply control building | E63: 165.6
A64: 171. Water supply, treatment, storage and distribution buildings | B64: 46 | C64: 171 | D64: Water supply, treatment, storage and distribution buildings | E64: 171.
A65: 175.1 Refuse depots | B65: 47 | C65: 175.1 | D65: Refuse depots | E65: 175.1
A66: 175.5 Incinerators | B66: 48 | C66: 175.5 | D66: Incinerators | E66: 175.5
A67: 177. Mortuaries, morgues | B67: 49 | C67: 177 | D67: Mortuaries, morgues | E67: 177.
A68: 184. Bulk goods storage facilities | B68: 50 | C68: 184 | D68: Bulk goods storage facilities | E68: 184.
A69: 262. Fish farms, fisheries | B69: 52 | C69: 262 | D69: Fish farms, fisheries | E69: 262.
A70: 264. Nurseries (horticulture), greenhouses, etc | B70: 53 | C70: 264 | D70: Nurseries (horticulture), greenhouses, etc | E70: 264.
A71: 265. Livestock buildings - farms (pig pens, milking parlours, etc) | B71: 54 | C71: 265 | D71: Livestock buildings - farms (pig pens, milking parlours, etc) | E71: 265.
A72: 265.5 Stud farms, stables and the like | B72: 55 | C72: 265.5 | D72: Stud farms, stables and the like | E72: 265.5
A73: =TEXT(C73,"000.####")&" "&D73 -> 268. Agricultural storage buildings | B73: 56 | C73: 268 | D73: Agricultural storage buildings | E73: 268.
A74: 268.1 Agricultural silos, bins, hoppers, tanks | B74: 57 | C74: 268.1 | D74: Agricultural silos, bins, hoppers, tanks | E74: =TEXT(C74,"000.###") -> 268.1
A75: 268.2 Agricultural storage with thrust resistant walls | B75: 58 | C75: 268.2 | D75: Agricultural storage with thrust resistant walls | E75: 268.2
A76: 268.3 Agricultural storage with non thrust resistant walls | B76: 59 | C76: 268.3 | D76: Agricultural storage with non thrust resistant walls | E76: 268.3
A77: 268.4 Agricultural storage with little or no walls | B77: 60 | C77: 268.4 | D77: Agricultural storage with little or no walls | E77: 268.4
A78: 273. Food/drink/tobacco factories | B78: 61 | C78: 273 | D78: Food/drink/tobacco factories | E78: 273.
A79: 273.5 Breweries | B79: 62 | C79: 273.5 | D79: Breweries | E79: 273.5
A80: 274. Factories for chemical and allied industries | B80: 63 | C80: 274 | D80: Factories for chemical and allied industries | E80: 274.
A81: 275.1 Factories for metals | B81: 64 | C81: 275.1 | D81: Factories for metals | E81: 275.1
A82: 275.2 Factories for mechanical engineering | B82: 65 | C82: 275.2 | D82: Factories for mechanical engineering | E82: 275.2
A83: 275.3 Factories for instrument engineering | B83: 66 | C83: 275.3 | D83: Factories for instrument engineering | E83: 275.3
A84: 275.4 Factories for electrical engineering | B84: 67 | C84: 275.4 | D84: Factories for electrical engineering | E84: 275.4
A85: 275.5 Factories for electronics, computers, or the like | B85: 68 | C85: 275.5 | D85: Factories for electronics, computers, or the like | E85: 275.5
A86: 275.6 Factories for vehicles | B86: 69 | C86: 275.6 | D86: Factories for vehicles | E86: 275.6
A87: 276.1 Factories for textiles | B87: 70 | C87: 276.1 | D87: Factories for textiles | E87: 276.1
A88: 276.2 Factories for leather, leather goods and fur | B88: 71 | C88: 276.2 | D88: Factories for leather, leather goods and fur | E88: 276.2
A89: 276.3 Factories for clothes, footwear | B89: 72 | C89: 276.3 | D89: Factories for clothes, footwear | E89: 276.3
A90: 277.1 Factories for bricks, pottery, glass, cement | B90: 73 | C90: 277.1 | D90: Factories for bricks, pottery, glass, cement | E90: 277.1
A91: 277.2 Factories for timber, furniture | B91: 74 | C91: 277.2 | D91: Factories for timber, furniture | E91: 277.2
A92: 277.3 Factories for paper, printing and publishing | B92: 75 | C92: 277.3 | D92: Factories for paper, printing and publishing | E92: 277.3
A93: 278. Builders yards, Local Authority maintenance depots | B93: 76 | C93: 278 | D93: Builders yards, Local Authority maintenance depots | E93: 278.
A94: 282. Factories | B94: 77 | C94: 282 | D94: Factories | E94: 282.
A95: 282.1 Advance factories | B95: 78 | C95: 282.1 | D95: Advance factories | E95: 282.1
A96: 282.12 Advance factories/offices - mixed facilities (class B1) | B96: 79 | C96: 282.12 | D96: Advance factories/offices - mixed facilities (class B1) | E96: 282.12
A97: 282.2 Purpose built factories | B97: 80 | C97: 282.2 | D97: Purpose built factories | E97: 282.2
A98: 282.22 Purpose built factories/Offices - mixed facilities | B98: 81 | C98: 282.22 | D98: Purpose built factories/Offices - mixed facilities | E98: 282.22
A99: 284. Warehouses/stores | B99: 82 | C99: 284 | D99: Warehouses/stores | E99: 284.
A100: 284.1 Advance warehouses/stores | B100: 83 | C100: 284.1 | D100: Advance warehouses/stores | E100: 284.1
A101: 284.2 Purpose built warehouses/stores | B101: 84 | C101: 284.2 | D101: Purpose built warehouses/stores | E101: 284.2
A102: 284.5 Cold stores/refrigerated stores | B102: 85 | C102: 284.5 | D102: Cold stores/refrigerated stores | E102: 284.5
A103: 311. International legislative and admin buildings | B103: 87 | C103: 311 | D103: International legislative and admin buildings | E103: 311.
A104: 312. National legislative and admin buildings | B104: 88 | C104: 312 | D104: National legislative and admin buildings | E104: 312.
A105: 314.1 County, City, Town halls | B105: 89 | C105: 314.1 | D105: County, City, Town halls | E105: 314.1
A106: 315. Local admin buildings | B106: 90 | C106: 315 | D106: Local admin buildings | E106: 315.
A107: 316. Official representation facilities eg palaces, embassies | B107: 91 | C107: 316 | D107: Official representation facilities eg palaces, embassies | E107: 316.
A108: 317. Law courts | B108: 92 | C108: 317 | D108: Law courts | E108: 317.
A109: 320. Offices | B109: 93 | C109: 320 | D109: Offices | E109: 320.
A110: 320.1 Offices with shops, banks, flats, etc | B110: 94 | C110: 320.1 | D110: Offices with shops, banks, flats, etc | E110: 320.1
A111: 321. Artist's studios | B111: 95 | C111: 321 | D111: Artist's studios | E111: 321.
A112: 323. Call centres | B112: 341 | C112: 323 | D112: Call centres | E112: 323.
A113: 338. Banks/Building Society branches | B113: 96 | C113: 338 | D113: Banks/Building Society branches | E113: 338.
A114: 340. Mixed commercial developments | B114: 97 | C114: 340 | D114: Mixed commercial developments | E114: 340.
A115: 341. Wholesale trading building/auction rooms | B115: 98 | C115: 341 | D115: Wholesale trading building/auction rooms | E115: 341.
A116: 341.1 Retail warehouses | B116: 99 | C116: 341.1 | D116: Retail warehouses | E116: 341.1
A117: 341.5 Market building providing accommodation for pens stalls etc | B117: 100 | C117: 341.5 | D117: Market building providing accommodation for pens stalls etc | E117: 341.5
A118: 342. Shopping centres | B118: 101 | C118: 342 | D118: Shopping centres | E118: 342.
A119: 343. Department stores | B119: 102 | C119: 343 | D119: Department stores | E119: 343.
A120: 344. Hypermarkets, supermarkets | B120: 103 | C120: 344 | D120: Hypermarkets, supermarkets | E120: 344.
A121: 345. Shops | B121: 104 | C121: 345 | D121: Shops | E121: 345.
A122: 345.1 Shops with domestic, office accommodation | B122: 105 | C122: 345.1 | D122: Shops with domestic, office accommodation | E122: 345.1
A123: 346. Service shops | B123: 106 | C123: 346 | D123: Service shops | E123: 346.
A124: 346.5 Undertakers | B124: 107 | C124: 346.5 | D124: Undertakers | E124: 346.5
A125: 348. Dealers, merchants | B125: 108 | C125: 348 | D125: Dealers, merchants | E125: 348.
A126: 371. Mountain and cave rescue stations | B126: 109 | C126: 371 | D126: Mountain and cave rescue stations | E126: 371.
A127: 372. Fire stations | B127: 110 | C127: 372 | D127: Fire stations | E127: 372.
A128: 372.1 Fire service admin/control buildings | B128: 111 | C128: 372.1 | D128: Fire service admin/control buildings | E128: 372.1
A129: 372.3 Fire stations with rescue and other emergency services | B129: 351 | C129: 372.3 | D129: Fire stations with rescue and other emergency services | E129: 372.3
A130: 372.5 Fire training towers | B130: 112 | C130: 372.5 | D130: Fire training towers | E130: 372.5
A131: 372.6 Fire training buildings | B131: 113 | C131: 372.6 | D131: Fire training buildings | E131: 372.6
A132: 373. Ambulance stations | B132: 114 | C132: 373 | D132: Ambulance stations | E132: 373.
A133: 373.1 Ambulance admin/control buildings | B133: 115 | C133: 373.1 | D133: Ambulance admin/control buildings | E133: 373.1
A134: 374. Police stations | B134: 116 | C134: 374 | D134: Police stations | E134: 374.
A135: 374.1 Police admin/control buildings | B135: 117 | C135: 374.1 | D135: Police admin/control buildings | E135: 374.1
A136: 374.2 Police patrol bases with vehicle bays | B136: 345 | C136: 374.2 | D136: Police patrol bases with vehicle bays | E136: 374.2
A137: =TEXT(C137,"000.####")&" "&D137 -> 374.3 Police patrol bases without vehicle bays | B137: 346 | C137: 374.3 | D137: Police patrol bases without vehicle bays | E137: 374.3
A138: 374.4 Police stations with social and welfare services | B138: 352 | C138: 374.4 | D138: Police stations with social and welfare services | E138: =TEXT(C138,"000.###") -> 374.4
A139: 375. Military buildings | B139: 118 | C139: 375 | D139: Military buildings | E139: 375.
A140: 375.1 Air Force facilities, operations building | B140: 119 | C140: 375.1 | D140: Air Force facilities, operations building | E140: 375.1
A141: 375.2 Navy facilities, operations buildings | B141: 120 | C141: 375.2 | D141: Navy facilities, operations buildings | E141: 375.2
A142: 375.3 Army facilities, operations buildings | B142: 121 | C142: 375.3 | D142: Army facilities, operations buildings | E142: 375.3
A143: 375.35 Territorial Army Centres | B143: 122 | C143: 375.35 | D143: Territorial Army Centres | E143: 375.35
A144: 375.4 Civil defence facilities | B144: 123 | C144: 375.4 | D144: Civil defence facilities | E144: 375.4
A145: 375.5 Camps, depots, bases, ranges | B145: 124 | C145: 375.5 | D145: Camps, depots, bases, ranges | E145: 375.5
A146: 375.6 Blockhouses, city walls | B146: 125 | C146: 375.6 | D146: Blockhouses, city walls | E146: 375.6
A147: 375.7 Air raid shelters, fall-out (radiation) shelters | B147: 126 | C147: 375.7 | D147: Air raid shelters, fall-out (radiation) shelters | E147: 375.7
A148: 376.1 Open prisons | B148: 127 | C148: 376.1 | D148: Open prisons | E148: 376.1
A149: 376.2 Closed prisons | B149: 128 | C149: 376.2 | D149: Closed prisons | E149: 376.2
A150: 376.5 Reformatories, borstals, secure residential units for children | B150: 129 | C150: 376.5 | D150: Reformatories, borstals, secure residential units for children | E150: 376.5
A151: 376.6 Cells and custody blocks | B151: 339 | C151: 376.6 | D151: Cells and custody blocks | E151: 376.6
A152: 376.8 Specialist facilities within prison complex | B152: 338 | C152: 376.8 | D152: Specialist facilities within prison complex | E152: 376.8
A153: 411. Teaching hospitals | B153: 131 | C153: 411 | D153: Teaching hospitals | E153: 411.
A154: 411.1 Hospital teaching centres | B154: 132 | C154: 411.1 | D154: Hospital teaching centres | E154: 411.1
A155: 412. General hospitals, GP hospitals, cottage hospitals | B155: 133 | C155: 412 | D155: General hospitals, GP hospitals, cottage hospitals | E155: 412.
A156: 412.8 Hospital - mixed specialist facilities | B156: 134 | C156: 412.8 | D156: Hospital - mixed specialist facilities | E156: 412.8
A157: 413. Mental health, psychiatric hospital facilities | B157: 135 | C157: 413 | D157: Mental health, psychiatric hospital facilities | E157: 413.
A158: 413.1 Psychiatric units | B158: 136 | C158: 413.1 | D158: Psychiatric units | E158: 413.1
A159: 413.12 Psychiatric units for the elderly | B159: 137 | C159: 413.12 | D159: Psychiatric units for the elderly | E159: 413.12
A160: 413.13 Low secure psychiatric units | B160: 355 | C160: 413.13 | D160: Low secure psychiatric units | E160: 413.13
A161: 413.14 Medium secure psychiatric units | B161: 356 | C161: 413.14 | D161: Medium secure psychiatric units | E161: 413.14
A162: 413.15 High secure psychiatric units | B162: 357 | C162: 413.15 | D162: High secure psychiatric units | E162: 413.15
A163: 413.16 Psychiatric intensive care units | B163: 358 | C163: 413.16 | D163: Psychiatric intensive care units | E163: 413.16
A164: 413.2 Learning disability units | B164: 138 | C164: 413.2 | D164: Learning disability units | E164: 413.2
A165: 413.22 Combined mental health and learning disability units | B165: 371 | C165: 413.22 | D165: Combined mental health and learning disability units | E165: 413.22
A166: 413.4 Addiction treatment units | B166: 340 | C166: 413.4 | D166: Addiction treatment units | E166: 413.4
A167: 414. Hospital facilities by part of body | B167: 139 | C167: 414 | D167: Hospital facilities by part of body | E167: 414.
A168: 414.1 Ear, nose and throat units | B168: 140 | C168: 414.1 | D168: Ear, nose and throat units | E168: 414.1
A169: 414.2 Eye hospitals | B169: 141 | C169: 414.2 | D169: Eye hospitals | E169: 414.2
A170: 414.3 Dental units (hospital facilities) | B170: 142 | C170: 414.3 | D170: Dental units (hospital facilities) | E170: 414.3
A171: 414.4 Cardiac units | B171: 143 | C171: 414.4 | D171: Cardiac units | E171: 414.4
A172: 414.5 Spinal injuries units | B172: 144 | C172: 414.5 | D172: Spinal injuries units | E172: 414.5
A173: 414.6 Chiropody units | B173: 145 | C173: 414.6 | D173: Chiropody units | E173: 414.6
A174: 414.7 Dermatology units | B174: 146 | C174: 414.7 | D174: Dermatology units | E174: 414.7
A175: 414.8 Hospital facilities for treatment of parts of the body | B175: 147 | C175: 414.8 | D175: Hospital facilities for treatment of parts of the body | E175: 414.8
A176: 415. Maternity, gynaecological hospital facilities | B176: 148 | C176: 415 | D176: Maternity, gynaecological hospital facilities | E176: 415.
A177: 415.7 Genito-urinary facilities | B177: 149 | C177: 415.7 | D177: Genito-urinary facilities | E177: 415.7
A178: 416. Paediatric, geriatric hospital facilities | B178: 150 | C178: 416 | D178: Paediatric, geriatric hospital facilities | E178: 416.
A179: 416.1 Paediatric units, children's hospitals | B179: 151 | C179: 416.1 | D179: Paediatric units, children's hospitals | E179: 416.1
A180: 416.2 Geriatric units | B180: 152 | C180: 416.2 | D180: Geriatric units | E180: 416.2
A181: 417.1 Diagnosis excluding radiography (x-ray) | B181: 153 | C181: 417.1 | D181: Diagnosis excluding radiography (x-ray) | E181: 417.1
A182: 417.11 Radiography (x-ray) units | B182: 154 | C182: 417.11 | D182: Radiography (x-ray) units | E182: 417.11
A183: 417.2 Surgery including operating theatres | B183: 155 | C183: 417.2 | D183: Surgery including operating theatres | E183: 417.2
A184: 417.4 Hospital laboratories | B184: 156 | C184: 417.4 | D184: Hospital laboratories | E184: 417.4
A185: 417.41 Pathology laboratories | B185: 157 | C185: 417.41 | D185: Pathology laboratories | E185: 417.41
A186: 417.5 Occupational therapy, physiotherapy, hydrotherapy | B186: 158 | C186: 417.5 | D186: Occupational therapy, physiotherapy, hydrotherapy | E186: 417.5
A187: 417.6 Palliative units | B187: 336 | C187: 417.6 | D187: Palliative units | E187: 417.6
A188: 417.7 Chemotherapy including pharmacies, dispensaries | B188: 159 | C188: 417.7 | D188: Chemotherapy including pharmacies, dispensaries | E188: 417.7
A189: 417.71 Pharmacies | B189: 160 | C189: 417.71 | D189: Pharmacies | E189: 417.71
A190: 417.72 Dispensaries | B190: 161 | C190: 417.72 | D190: Dispensaries | E190: 417.72
A191: 417.73 Chemotherapy units | B191: 162 | C191: 417.73 | D191: Chemotherapy units | E191: 417.73
A192: 417.81 Radiotherapy units (incl linear accelerators) | B192: 163 | C192: 417.81 | D192: Radiotherapy units (incl linear accelerators) | E192: 417.81
A193: 417.88 Specialised facilities | B193: 164 | C193: 417.88 | D193: Specialised facilities | E193: 417.88
A194: 418.1 Ward blocks | B194: 165 | C194: 418.1 | D194: Ward blocks | E194: 418.1
A195: 418.2 Outpatients/casualty units | B195: 166 | C195: 418.2 | D195: Outpatients/casualty units | E195: 418.2
A196: 418.25 Day hospitals | B196: 167 | C196: 418.25 | D196: Day hospitals | E196: 418.25
A197: 418.3 Intensive care/Acute wards | B197: 168 | C197: 418.3 | D197: Intensive care/Acute wards | E197: 418.3
A198: 418.8 Sterile stores, sterilisation units | B198: 169 | C198: 418.8 | D198: Sterile stores, sterilisation units | E198: 418.8
A199: 421. Health Centres, clinics, group practice surgeries | B199: 170 | C199: 421 | D199: Health Centres, clinics, group practice surgeries | E199: 421.
A200: 424. Dentists surgeries | B200: 171 | C200: 424 | D200: Dentists surgeries | E200: 424.
A201: =TEXT(C201,"000.####")&" "&D201 -> 425. Welfare consultation centres | B201: 172 | C201: 425 | D201: Welfare consultation centres | E201: 425.
A202: 426. First aid posts | B202: 173 | C202: 426 | D202: First aid posts | E202: =TEXT(C202,"000.###") -> 426.
... 171 more rows

Sheet SpecificationCodes (hidden)
F1: select | G1: Specification.id as SpecCodeID,
G2: Reference as SpecElement,
G3: StandardDescription as ElementDescription,
G4: str( isnull( LegacyType.LegacyTableNumber, 0 ), 2, 0 ) + '/' + Specification.Code as Code,
G5: case when UseLegacyCodeType = 3 then isnull( LegacyType.Description + ': ' , '' ) else '' end + Specification.Description as Description,
G6: ElementID,
G7: LegacyKey
F8: from | G8: GeneralCode as Specification
F9: inner join GeneralCodeType as CodeType on CodeType.id = Specification.CodeTypeID
F10: inner join GeneralCodeControl on GeneralCodeControl.CodeTypeID = CodeType.id
F11: left outer join GeneralCodeType as LegacyType on LegacyType.id = LegacyCodeTypeID
F12: inner join ElementSpecificationCodeLink on Specification.id = SpecificationCodeID
F13: inner join Element on Element.id = ElementID
F14: inner join GeneralCode as ElementLibrary on ElementLibrary.id = ElementLibraryID
F15: where | G15: ElementLibrary.Code = 'BCIS2012' and
G16: InputFlagElemental = 1
F17: union all
F18: select | G18: 0 as SpecCodeID,
G19: Reference as SpecElement,
G20: StandardDescription as ElementDescription,
G21: '' as Code,
G22: '' as Description,
G23: Element.id as ElementID,
G24: LegacyKey
F25: from | G25: Element
F26: inner join GeneralCode as ElementLibrary on ElementLibrary.id = ElementLibraryID
F27: where | G27: ElementLibrary.Code = 'BCIS2012' and
G28: InputFlagElemental = 1
F29: order by LegacyKey, Code
E36: NB Range names updated using VBA procedure: run DefineSpecCodeRanges
E37: From I:\DATA\TPI\IndexingSpreadsheetTemplates\CandidateNewVersion\SpecCodesModule.bas
E39: Lookup | F39: id | G39: Reference | H39: ElementDescription | I39: Code | J39: Description | K39: ElementID | L39: LegacyKey
E41: =I41&" " &J41 ->  | F41: 0 | G41: 1 | H41: Substructure | K41: 187 | L41: 310
E42: 17/0 Lowest floor slab: Undefined lowest floor slab | F42: 1044 | G42: 1 | H42: Substructure | I42: 17/0 | J42: Lowest floor slab: Undefined lowest floor slab | K42: 187 | L42: 310
E43: 17/1 Lowest floor slab: Bed | F43: 1045 | G43: 1 | H43: Substructure | I43: 17/1 | J43: Lowest floor slab: Bed | K43: 187 | L43: 310
E44: 17/1F2 Lowest floor slab: Bed, precast concrete | F44: 1046 | G44: 1 | H44: Substructure | I44: 17/1F2 | J44: Lowest floor slab: Bed, precast concrete | K44: 187 | L44: 310
E45: 17/1G2 Lowest floor slab: Clay/concrete brick paviors direct on ground | F45: 1047 | G45: 1 | H45: Substructure | I45: 17/1G2 | J45: Lowest floor slab: Clay/concrete brick paviors direct on ground | K45: 187 | L45: 310
E46: 17/1Q4 Lowest floor slab: Bed, insitu concrete | F46: 1048 | G46: 1 | H46: Substructure | I46: 17/1Q4 | J46: Lowest floor slab: Bed, insitu concrete | K46: 187 | L46: 310
E47: 17/2 Lowest floor slab: Suspended | F47: 2568 | G47: 1 | H47: Substructure | I47: 17/2 | J47: Lowest floor slab: Suspended | K47: 187 | L47: 310
E48: 17/2F2 Lowest floor slab: Suspended, precast concrete | F48: 1049 | G48: 1 | H48: Substructure | I48: 17/2F2 | J48: Lowest floor slab: Suspended, precast concrete | K48: 187 | L48: 310
E49: 17/2I1 Lowest floor slab: Suspended, timber | F49: 1050 | G49: 1 | H49: Substructure | I49: 17/2I1 | J49: Lowest floor slab: Suspended, timber | K49: 187 | L49: 310
E50: 17/2Q4 Lowest floor slab: Suspended, insitu concrete | F50: 1051 | G50: 1 | H50: Substructure | I50: 17/2Q4 | J50: Lowest floor slab: Suspended, insitu concrete | K50: 187 | L50: 310
E51: 17/4 Lowest floor slab: Basement | F51: 1052 | G51: 1 | H51: Substructure | I51: 17/4 | J51: Lowest floor slab: Basement | K51: 187 | L51: 310
E52: 17/4F2 Lowest floor slab: Basement, precast concrete | F52: 1053 | G52: 1 | H52: Substructure | I52: 17/4F2 | J52: Lowest floor slab: Basement, precast concrete | K52: 187 | L52: 310
E53: 17/4Q4 Lowest floor slab: Basement, insitu concrete | F53: 1054 | G53: 1 | H53: Substructure | I53: 17/4Q4 | J53: Lowest floor slab: Basement, insitu concrete | K53: 187 | L53: 310
E54: 17/8 Lowest floor slab: Other lowest floor slab | F54: 1055 | G54: 1 | H54: Substructure | I54: 17/8 | J54: Lowest floor slab: Other lowest floor slab | K54: 187 | L54: 310
E55: 17/8F2 Lowest floor slab: Other, precast concrete | F55: 1056 | G55: 1 | H55: Substructure | I55: 17/8F2 | J55: Lowest floor slab: Other, precast concrete | K55: 187 | L55: 310
E56: 17/8I1 Lowest floor slab: Other, timber | F56: 1057 | G56: 1 | H56: Substructure | I56: 17/8I1 | J56: Lowest floor slab: Other, timber | K56: 187 | L56: 310
E57: 17/8Q4 Lowest floor slab: Other, insitu concrete | F57: 1058 | G57: 1 | H57: Substructure | I57: 17/8Q4 | J57: Lowest floor slab: Other, insitu concrete | K57: 187 | L57: 310
E58: 17/9 Lowest floor slab: Work to existing floor | F58: 3530 | G58: 1 | H58: Substructure | I58: 17/9 | J58: Lowest floor slab: Work to existing floor | K58: 187 | L58: 310
E59: 18/ D6 Foundations: Vibro compaction/soil stabilisation | F59: 1059 | G59: 1 | H59: Substructure | I59: 18/ D6 | J59: Foundations: Vibro compaction/soil stabilisation | K59: 187 | L59: 310
E60: 18/0 Foundations: Undefined | F60: 1060 | G60: 1 | H60: Substructure | I60: 18/0 | J60: Foundations: Undefined | K60: 187 | L60: 310
E61: 18/4 Foundations: Pad foundation | F61: 1061 | G61: 1 | H61: Substructure | I61: 18/4 | J61: Foundations: Pad foundation | K61: 187 | L61: 310
E62: 18/4Q4 Foundations: Pad foundation, insitu concrete | F62: 1062 | G62: 1 | H62: Substructure | I62: 18/4Q4 | J62: Foundations: Pad foundation, insitu concrete | K62: 187 | L62: 310
E63: 18/6 Foundations: Strip foundation | F63: 1063 | G63: 1 | H63: Substructure | I63: 18/6 | J63: Foundations: Strip foundation | K63: 187 | L63: 310
E64: 18/6F2 Foundations: Strip/ground beam, precast concrete | F64: 1064 | G64: 1 | H64: Substructure | I64: 18/6F2 | J64: Foundations: Strip/ground beam, precast concrete | K64: 187 | L64: 310
E65: 18/6H2 Foundations: Concrete encased steel ground beams | F65: 1065 | G65: 1 | H65: Substructure | I65: 18/6H2 | J65: Foundations: Concrete encased steel ground beams | K65: 187 | L65: 310
E66: 18/6Q4 Foundations: Strip/ground beam, insitu concrete | F66: 1066 | G66: 1 | H66: Substructure | I66: 18/6Q4 | J66: Foundations: Strip/ground beam, insitu concrete | K66: 187 | L66: 310
E67: 18/7 Foundations: Raft foundation | F67: 1067 | G67: 1 | H67: Substructure | I67: 18/7 | J67: Foundations: Raft foundation | K67: 187 | L67: 310
E68: 18/7Q4 Foundations: Raft, insitu concrete | F68: 1068 | G68: 1 | H68: Substructure | I68: 18/7Q4 | J68: Foundations: Raft, insitu concrete | K68: 187 | L68: 310
E69: 18/8 Foundations: Other foundations | F69: 1069 | G69: 1 | H69: Substructure | I69: 18/8 | J69: Foundations: Other foundations | K69: 187 | L69: 310
E70: 18/8Q4 Foundations: Other foundation, insitu concrete | F70: 1070 | G70: 1 | H70: Substructure | I70: 18/8Q4 | J70: Foundations: Other foundation, insitu concrete | K70: 187 | L70: 310
E71: 18/9 Foundations: Built off existing foundations/piles | F71: 1071 | G71: 1 | H71: Substructure | I71: 18/9 | J71: Foundations: Built off existing foundations/piles | K71: 187 | L71: 310
E72: 18/9B Foundations: Underpinning to existing structure | F72: 1072 | G72: 1 | H72: Substructure | I72: 18/9B | J72: Foundations: Underpinning to existing structure | K72: 187 | L72: 310
E73: 19/0 Piling: Undefined piling | F73: 1073 | G73: 1 | H73: Substructure | I73: 19/0 | J73: Piling: Undefined piling | K73: 187 | L73: 310
E74: 19/0 9 Piling: Undefined piling, PC Provisional sum | F74: 1074 | G74: 1 | H74: Substructure | I74: 19/0 9 | J74: Piling: Undefined piling, PC Provisional sum | K74: 187 | L74: 310
E75: 19/1 Piling: Sheet piling | F75: 1075 | G75: 1 | H75: Substructure | I75: 19/1 | J75: Piling: Sheet piling | K75: 187 | L75: 310
E76: 19/1H2 Piling: Sheet, steel piling | F76: 1076 | G76: 1 | H76: Substructure | I76: 19/1H2 | J76: Piling: Sheet, steel piling | K76: 187 | L76: 310
E77: 19/2 Piling: Replacement piling | F77: 1077 | G77: 1 | H77: Substructure | I77: 19/2 | J77: Piling: Replacement piling | K77: 187 | L77: 310
E78: 19/2H2 Piling: Replacement (bored), steel | F78: 1078 | G78: 1 | H78: Substructure | I78: 19/2H2 | J78: Piling: Replacement (bored), steel | K78: 187 | L78: 310
E79: 19/2Q4 Piling: Replacement (bored), insitu concrete | F79: 1079 | G79: 1 | H79: Substructure | I79: 19/2Q4 | J79: Piling: Replacement (bored), insitu concrete | K79: 187 | L79: 310
E80: 19/3 Piling: Displacement piling | F80: 1080 | G80: 1 | H80: Substructure | I80: 19/3 | J80: Piling: Displacement piling | K80: 187 | L80: 310
E81: 19/3F2 Piling: Displacement (driven), precast concrete | F81: 1081 | G81: 1 | H81: Substructure | I81: 19/3F2 | J81: Piling: Displacement (driven), precast concrete | K81: 187 | L81: 310
E82: 19/3H2 Piling: Displacement (driven), steel | F82: 1082 | G82: 1 | H82: Substructure | I82: 19/3H2 | J82: Piling: Displacement (driven), steel | K82: 187 | L82: 310
E83: 19/3Q4 Piling: Displacement (driven) insitu concrete | F83: 1083 | G83: 1 | H83: Substructure | I83: 19/3Q4 | J83: Piling: Displacement (driven) insitu concrete | K83: 187 | L83: 310
E84: 19/8 Piling: Other piling | F84: 1084 | G84: 1 | H84: Substructure | I84: 19/8 | J84: Piling: Other piling | K84: 187 | L84: 310
E85: 19/8H2 Piling: Other, steel | F85: 1085 | G85: 1 | H85: Substructure | I85: 19/8H2 | J85: Piling: Other, steel | K85: 187 | L85: 310
E86: 19/8Q4 Piling: Other, insitu concrete | F86: 1086 | G86: 1 | H86: Substructure | I86: 19/8Q4 | J86: Piling: Other, insitu concrete | K86: 187 | L86: 310
F87: 0 | G87: 2.01 | H87: Frame | K87: 188 | L87: 320
E88: 28/ A Mixed construction | F88: 1215 | G88: 2.01 | H88: Frame | I88: 28/ A | J88: Mixed construction | K88: 188 | L88: 320
E89: 28/ F2 Precast concrete | F89: 1216 | G89: 2.01 | H89: Frame | I89: 28/ F2 | J89: Precast concrete | K89: 188 | L89: 320
E90: 28/ H2 Steel | F90: 1217 | G90: 2.01 | H90: Frame | I90: 28/ H2 | J90: Steel | K90: 188 | L90: 320
E91: 28/ I1 Timber | F91: 1218 | G91: 2.01 | H91: Frame | I91: 28/ I1 | J91: Timber | K91: 188 | L91: 320
E92: 28/ I4 Laminated timber | F92: 1219 | G92: 2.01 | H92: Frame | I92: 28/ I4 | J92: Laminated timber | K92: 188 | L92: 320
E93: 28/ Q4 Insitu concrete | F93: 1220 | G93: 2.01 | H93: Frame | I93: 28/ Q4 | J93: Insitu concrete | K93: 188 | L93: 320
E94: 28/1 Undefined | F94: 1221 | G94: 2.01 | H94: Frame | I94: 28/1 | J94: Undefined | K94: 188 | L94: 320
E95: 28/2A Column and beam, mixed construction | F95: 1222 | G95: 2.01 | H95: Frame | I95: 28/2A | J95: Column and beam, mixed construction | K95: 188 | L95: 320
E96: 28/2F2 Column and beam, precast concrete | F96: 1223 | G96: 2.01 | H96: Frame | I96: 28/2F2 | J96: Column and beam, precast concrete | K96: 188 | L96: 320
E97: 28/2H2 Column and beam, steel | F97: 1224 | G97: 2.01 | H97: Frame | I97: 28/2H2 | J97: Column and beam, steel | K97: 188 | L97: 320
E98: 28/2I1 Column and beam, timber | F98: 1225 | G98: 2.01 | H98: Frame | I98: 28/2I1 | J98: Column and beam, timber | K98: 188 | L98: 320
E99: 28/2Q4 Column and beam, insitu concrete | F99: 1226 | G99: 2.01 | H99: Frame | I99: 28/2Q4 | J99: Column and beam, insitu concrete | K99: 188 | L99: 320
E100: 28/3F2 Column and slab, precast concrete | F100: 1227 | G100: 2.01 | H100: Frame | I100: 28/3F2 | J100: Column and slab, precast concrete | K100: 188 | L100: 320
E101: 28/3Q4 Column and slab, insitu concrete | F101: 1228 | G101: 2.01 | H101: Frame | I101: 28/3Q4 | J101: Column and slab, insitu concrete | K101: 188 | L101: 320
E102: 28/4F2 Portal frame, precast concrete | F102: 1229 | G102: 2.01 | H102: Frame | I102: 28/4F2 | J102: Portal frame, precast concrete | K102: 188 | L102: 320
E103: 28/4H2 Portal frame, steel | F103: 1230 | G103: 2.01 | H103: Frame | I103: 28/4H2 | J103: Portal frame, steel | K103: 188 | L103: 320
E104: 28/4I1 Portal frame, timber | F104: 1231 | G104: 2.01 | H104: Frame | I104: 28/4I1 | J104: Portal frame, timber | K104: 188 | L104: 320
E105: =I105&" " &J105 -> 28/4I4 Portal frame, laminated timber | F105: 1232 | G105: 2.01 | H105: Frame | I105: 28/4I4 | J105: Portal frame, laminated timber | K105: 188 | L105: 320
E106: 28/5F2 Column and cable, precast concrete | F106: 1233 | G106: 2.01 | H106: Frame | I106: 28/5F2 | J106: Column and cable, precast concrete | K106: 188 | L106: 320
E107: 28/6H2 Space frame, steel | F107: 1234 | G107: 2.01 | H107: Frame | I107: 28/6H2 | J107: Space frame, steel | K107: 188 | L107: 320
E108: 28/7F2 'A' frame, precast concrete | F108: 1235 | G108: 2.01 | H108: Frame | I108: 28/7F2 | J108: 'A' frame, precast concrete | K108: 188 | L108: 320
E109: 28/7H2 'A' frame, steel | F109: 1236 | G109: 2.01 | H109: Frame | I109: 28/7H2 | J109: 'A' frame, steel | K109: 188 | L109: 320
E110: 28/7I1 'A' frame, timber | F110: 1237 | G110: 2.01 | H110: Frame | I110: 28/7I1 | J110: 'A' frame, timber | K110: 188 | L110: 320
E111: 28/7I4 'A' frame, wood laminates | F111: 1238 | G111: 2.01 | H111: Frame | I111: 28/7I4 | J111: 'A' frame, wood laminates | K111: 188 | L111: 320
E112: 28/9 Work to existing | F112: 1908 | G112: 2.01 | H112: Frame | I112: 28/9 | J112: Work to existing | K112: 188 | L112: 320
F113: 0 | G113: 2.02 | H113: Upper Floors | K113: 192 | L113: 330
E114: 23/ A Mixed construction | F114: 1160 | G114: 2.02 | H114: Upper Floors | I114: 23/ A | J114: Mixed construction | K114: 192 | L114: 330
E115: 23/ F2 Precast concrete | F115: 1161 | G115: 2.02 | H115: Upper Floors | I115: 23/ F2 | J115: Precast concrete | K115: 192 | L115: 330
E116: 23/ H Metal | F116: 1162 | G116: 2.02 | H116: Upper Floors | I116: 23/ H | J116: Metal | K116: 192 | L116: 330
E117: 23/ H2 Steel | F117: 1163 | G117: 2.02 | H117: Upper Floors | I117: 23/ H2 | J117: Steel | K117: 192 | L117: 330
E118: 23/ Q4 Insitu concrete | F118: 1164 | G118: 2.02 | H118: Upper Floors | I118: 23/ Q4 | J118: Insitu concrete | K118: 192 | L118: 330
E119: 23/0 Undefined | F119: 1165 | G119: 2.02 | H119: Upper Floors | I119: 23/0 | J119: Undefined | K119: 192 | L119: 330
E120: 23/2Q4 Monolithic slab, insitu concrete | F120: 1166 | G120: 2.02 | H120: Upper Floors | I120: 23/2Q4 | J120: Monolithic slab, insitu concrete | K120: 192 | L120: 330
E121: 23/3A Assembled, composite, mixed construction | F121: 1167 | G121: 2.02 | H121: Upper Floors | I121: 23/3A | J121: Assembled, composite, mixed construction | K121: 192 | L121: 330
E122: 23/3F2 Assembled, composite, precast concrete | F122: 1168 | G122: 2.02 | H122: Upper Floors | I122: 23/3F2 | J122: Assembled, composite, precast concrete | K122: 192 | L122: 330
E123: 23/3I1 Assembled, composite, timber | F123: 1169 | G123: 2.02 | H123: Upper Floors | I123: 23/3I1 | J123: Assembled, composite, timber | K123: 192 | L123: 330
F124: 0 | G124: 2.03 | H124: Roof | K124: 199 | L124: 340
E125: 27/ H2 Roof structure: Steel | F125: 1190 | G125: 2.03 | H125: Roof | I125: 27/ H2 | J125: Roof structure: Steel | K125: 199 | L125: 340
E126: 27/0 Roof structure: Undefined | F126: 1191 | G126: 2.03 | H126: Roof | I126: 27/0 | J126: Roof structure: Undefined | K126: 199 | L126: 340
E127: 27/1 Roof structure: Flat | F127: 1192 | G127: 2.03 | H127: Roof | I127: 27/1 | J127: Roof structure: Flat | K127: 199 | L127: 340
E128: 27/1A Roof structure: Flat, mixed construction | F128: 1193 | G128: 2.03 | H128: Roof | I128: 27/1A | J128: Roof structure: Flat, mixed construction | K128: 199 | L128: 340
E129: 27/1F2 Roof structure: Flat, precast concrete | F129: 1194 | G129: 2.03 | H129: Roof | I129: 27/1F2 | J129: Roof structure: Flat, precast concrete | K129: 199 | L129: 340
E130: 27/1H2 Roof structure: Flat, steel | F130: 1195 | G130: 2.03 | H130: Roof | I130: 27/1H2 | J130: Roof structure: Flat, steel | K130: 199 | L130: 340
E131: 27/1I1 Roof structure: Flat, timber | F131: 1196 | G131: 2.03 | H131: Roof | I131: 27/1I1 | J131: Roof structure: Flat, timber | K131: 199 | L131: 340
E132: 27/1I2 Roof structure: Flat, softwood | F132: 1197 | G132: 2.03 | H132: Roof | I132: 27/1I2 | J132: Roof structure: Flat, softwood | K132: 199 | L132: 340
E133: 27/1I4 Roof structure: Flat, laminated timber | F133: 1198 | G133: 2.03 | H133: Roof | I133: 27/1I4 | J133: Roof structure: Flat, laminated timber | K133: 199 | L133: 340
E134: 27/1Q4 Roof structure: Flat, insitu concrete | F134: 1199 | G134: 2.03 | H134: Roof | I134: 27/1Q4 | J134: Roof structure: Flat, insitu concrete | K134: 199 | L134: 340
E135: 27/2 Roof structure: Pitched | F135: 1200 | G135: 2.03 | H135: Roof | I135: 27/2 | J135: Roof structure: Pitched | K135: 199 | L135: 340
E136: 27/2A Roof structure: Pitched, mixed construction | F136: 1201 | G136: 2.03 | H136: Roof | I136: 27/2A | J136: Roof structure: Pitched, mixed construction | K136: 199 | L136: 340
E137: 27/2F2 Roof structure: Pitched, precast concrete | F137: 1202 | G137: 2.03 | H137: Roof | I137: 27/2F2 | J137: Roof structure: Pitched, precast concrete | K137: 199 | L137: 340
E138: 27/2H2 Roof structure: Pitched, steel | F138: 1203 | G138: 2.03 | H138: Roof | I138: 27/2H2 | J138: Roof structure: Pitched, steel | K138: 199 | L138: 340
E139: 27/2I1 Roof structure: Pitched, timber | F139: 1204 | G139: 2.03 | H139: Roof | I139: 27/2I1 | J139: Roof structure: Pitched, timber | K139: 199 | L139: 340
E140: 27/2I2 Roof structure: Pitched, softwood | F140: 1205 | G140: 2.03 | H140: Roof | I140: 27/2I2 | J140: Roof structure: Pitched, softwood | K140: 199 | L140: 340
E141: 27/2I4 Roof structure: Pitched, laminated timber | F141: 1206 | G141: 2.03 | H141: Roof | I141: 27/2I4 | J141: Roof structure: Pitched, laminated timber | K141: 199 | L141: 340
E142: 27/3 Roof structure: Space frame | F142: 1207 | G142: 2.03 | H142: Roof | I142: 27/3 | J142: Roof structure: Space frame | K142: 199 | L142: 340
E143: 27/3H2 Roof structure: Space frame, steel | F143: 1208 | G143: 2.03 | H143: Roof | I143: 27/3H2 | J143: Roof structure: Space frame, steel | K143: 199 | L143: 340
E144: 27/4 Roof structure: Folded plate | F144: 1209 | G144: 2.03 | H144: Roof | I144: 27/4 | J144: Roof structure: Folded plate | K144: 199 | L144: 340
E145: 27/4H2 Roof structure: Folded plate, steel | F145: 1210 | G145: 2.03 | H145: Roof | I145: 27/4H2 | J145: Roof structure: Folded plate, steel | K145: 199 | L145: 340
E146: 27/6 Roof structure: Barrel vaulted/monocoque | F146: 2541 | G146: 2.03 | H146: Roof | I146: 27/6 | J146: Roof structure: Barrel vaulted/monocoque | K146: 199 | L146: 340
E147: 27/6F2 Roof structure: Barrel vaulted/monocoque, precast concrete | F147: 1211 | G147: 2.03 | H147: Roof | I147: 27/6F2 | J147: Roof structure: Barrel vaulted/monocoque, precast concrete | K147: 199 | L147: 340
E148: 27/6H2 Roof structure: Barrel vaulted/monocoque, steel | F148: 1212 | G148: 2.03 | H148: Roof | I148: 27/6H2 | J148: Roof structure: Barrel vaulted/monocoque, steel | K148: 199 | L148: 340
E149: 27/6I1 Roof structure: Barrel vaulted/monocoque, timber | F149: 2083 | G149: 2.03 | H149: Roof | I149: 27/6I1 | J149: Roof structure: Barrel vaulted/monocoque, timber | K149: 199 | L149: 340
E150: 27/6Q4 Roof structure: Barrel vaulted/monocoque, insitu concrete | F150: 1213 | G150: 2.03 | H150: Roof | I150: 27/6Q4 | J150: Roof structure: Barrel vaulted/monocoque, insitu concrete | K150: 199 | L150: 340
E151: 27/8 Roof structure: Other | F151: 1214 | G151: 2.03 | H151: Roof | I151: 27/8 | J151: Roof structure: Other | K151: 199 | L151: 340
E152: 47/0 Roof finishes: Undefined | F152: 1421 | G152: 2.03 | H152: Roof | I152: 47/0 | J152: Roof finishes: Undefined | K152: 199 | L152: 340
E153: 47/1H Roof finishes: Metal faced bitumen felt | F153: 1422 | G153: 2.03 | H153: Roof | I153: 47/1H | J153: Roof finishes: Metal faced bitumen felt | K153: 199 | L153: 340
E154: 47/1H4 Roof finishes: Aluminium | F154: 1423 | G154: 2.03 | H154: Roof | I154: 47/1H4 | J154: Roof finishes: Aluminium | K154: 199 | L154: 340
E155: 47/1H5 Roof finishes: Copper | F155: 1424 | G155: 2.03 | H155: Roof | I155: 47/1H5 | J155: Roof finishes: Copper | K155: 199 | L155: 340
E156: 47/1H7 Roof finishes: Zinc | F156: 1425 | G156: 2.03 | H156: Roof | I156: 47/1H7 | J156: Roof finishes: Zinc | K156: 199 | L156: 340
E157: 47/1H8 Roof finishes: Lead | F157: 1426 | G157: 2.03 | H157: Roof | I157: 47/1H8 | J157: Roof finishes: Lead | K157: 199 | L157: 340
E158: 47/1N2 Roof finishes: Bitumen felt or the like | F158: 1427 | G158: 2.03 | H158: Roof | I158: 47/1N2 | J158: Roof finishes: Bitumen felt or the like | K158: 199 | L158: 340
E159: 47/1N6 Roof finishes: Plastic | F159: 1428 | G159: 2.03 | H159: Roof | I159: 47/1N6 | J159: Roof finishes: Plastic | K159: 199 | L159: 340
E160: 47/1S4 Roof finishes: Asphalt | F160: 1429 | G160: 2.03 | H160: Roof | I160: 47/1S4 | J160: Roof finishes: Asphalt | K160: 199 | L160: 340
E161: 47/2N2 Roof finishes: Metal decking, bitumen felt or the like | F161: 1430 | G161: 2.03 | H161: Roof | I161: 47/2N2 | J161: Roof finishes: Metal decking, bitumen felt or the like | K161: 199 | L161: 340
E162: 47/2S4 Roof finishes: Metal decking, asphalt | F162: 1431 | G162: 2.03 | H162: Roof | I162: 47/2S4 | J162: Roof finishes: Metal decking, asphalt | K162: 199 | L162: 340
E163: 47/3 Roof finishes: Woodwool decking | F163: 1432 | G163: 2.03 | H163: Roof | I163: 47/3 | J163: Roof finishes: Woodwool decking | K163: 199 | L163: 340
E164: 47/3H Roof finishes: Woodwool decking, metal faced bitumen felt | F164: 1433 | G164: 2.03 | H164: Roof | I164: 47/3H | J164: Roof finishes: Woodwool decking, metal faced bitumen felt | K164: 199 | L164: 340
E165: 47/3H4 Roof finishes: Woodwool decking, aluminium | F165: 1434 | G165: 2.03 | H165: Roof | I165: 47/3H4 | J165: Roof finishes: Woodwool decking, aluminium | K165: 199 | L165: 340
E166: 47/3H8 Roof finishes: Woodwool decking, lead | F166: 1435 | G166: 2.03 | H166: Roof | I166: 47/3H8 | J166: Roof finishes: Woodwool decking, lead | K166: 199 | L166: 340
E167: 47/3N2 Roof finishes: Woodwool decking, bitumen felt or the like | F167: 1436 | G167: 2.03 | H167: Roof | I167: 47/3N2 | J167: Roof finishes: Woodwool decking, bitumen felt or the like | K167: 199 | L167: 340
E168: 47/3N6 Roof finishes: Woodwool decking, plastic | F168: 1437 | G168: 2.03 | H168: Roof | I168: 47/3N6 | J168: Roof finishes: Woodwool decking, plastic | K168: 199 | L168: 340
E169: =I169&" " &J169 -> 47/3S4 Roof finishes: Woodwool decking, asphalt | F169: 1438 | G169: 2.03 | H169: Roof | I169: 47/3S4 | J169: Roof finishes: Woodwool decking, asphalt | K169: 199 | L169: 340
E170: 47/4 Roof finishes: Cladding on framing | F170: 1439 | G170: 2.03 | H170: Roof | I170: 47/4 | J170: Roof finishes: Cladding on framing | K170: 199 | L170: 340
E171: 47/4F6 Roof finishes: Cladding on framing, asbestos cement or like | F171: 1440 | G171: 2.03 | H171: Roof | I171: 47/4F6 | J171: Roof finishes: Cladding on framing, asbestos cement or like | K171: 199 | L171: 340
E172: 47/4H Roof finishes: Cladding on framing, metal | F172: 1441 | G172: 2.03 | H172: Roof | I172: 47/4H | J172: Roof finishes: Cladding on framing, metal | K172: 199 | L172: 340
E173: 47/4H2 Roof finishes: Cladding on framing, steel | F173: 1442 | G173: 2.03 | H173: Roof | I173: 47/4H2 | J173: Roof finishes: Cladding on framing, steel | K173: 199 | L173: 340
E174: 47/4H4 Roof finishes: Cladding on framing, aluminium | F174: 1443 | G174: 2.03 | H174: Roof | I174: 47/4H4 | J174: Roof finishes: Cladding on framing, aluminium | K174: 199 | L174: 340
E175: 47/4N6 Roof finishes: Cladding on framing, plastic | F175: 1444 | G175: 2.03 | H175: Roof | I175: 47/4N6 | J175: Roof finishes: Cladding on framing, plastic | K175: 199 | L175: 340
E176: 47/4N8 Roof finishes: Cladding on Framing, glass fibre | F176: 1445 | G176: 2.03 | H176: Roof | I176: 47/4N8 | J176: Roof finishes: Cladding on Framing, glass fibre | K176: 199 | L176: 340
E177: 47/5 Roof finishes: Tiles/slates | F177: 1446 | G177: 2.03 | H177: Roof | I177: 47/5 | J177: Roof finishes: Tiles/slates | K177: 199 | L177: 340
E178: 47/5E5 Roof finishes: Tiles and slates, natural quarry | F178: 1447 | G178: 2.03 | H178: Roof | I178: 47/5E5 | J178: Roof finishes: Tiles and slates, natural quarry | K178: 199 | L178: 340
E179: 47/5F2 Roof finishes: Tiles/slates, concrete/clay | F179: 1448 | G179: 2.03 | H179: Roof | I179: 47/5F2 | J179: Roof finishes: Tiles/slates, concrete/clay | K179: 199 | L179: 340
E180: 47/5F3 Roof finishes: Tiles/slates, reconstituted stone | F180: 1449 | G180: 2.03 | H180: Roof | I180: 47/5F3 | J180: Roof finishes: Tiles/slates, reconstituted stone | K180: 199 | L180: 340
E181: 47/5F6 Roof finishes: Tiles/slates, asbestos cement or similar | F181: 1450 | G181: 2.03 | H181: Roof | I181: 47/5F6 | J181: Roof finishes: Tiles/slates, asbestos cement or similar | K181: 199 | L181: 340
E182: 47/5H Roof finishes: Tiles/slates, metal | F182: 1451 | G182: 2.03 | H182: Roof | I182: 47/5H | J182: Roof finishes: Tiles/slates, metal | K182: 199 | L182: 340
E183: 47/5I1 Roof finishes: Tiles/slates, timber | F183: 1452 | G183: 2.03 | H183: Roof | I183: 47/5I1 | J183: Roof finishes: Tiles/slates, timber | K183: 199 | L183: 340
E184: 47/6H3 Roof finishes: Timber/ply decking, stainless steel | F184: 1453 | G184: 2.03 | H184: Roof | I184: 47/6H3 | J184: Roof finishes: Timber/ply decking, stainless steel | K184: 199 | L184: 340
E185: 47/6H4 Roof finishes: Timber/ply decking, aluminium | F185: 1454 | G185: 2.03 | H185: Roof | I185: 47/6H4 | J185: Roof finishes: Timber/ply decking, aluminium | K185: 199 | L185: 340
E186: 47/6H5 Roof finishes: Timber/ply decking, copper | F186: 1455 | G186: 2.03 | H186: Roof | I186: 47/6H5 | J186: Roof finishes: Timber/ply decking, copper | K186: 199 | L186: 340
E187: 47/6H7 Roof finishes: Timber/ply decking, zinc | F187: 1456 | G187: 2.03 | H187: Roof | I187: 47/6H7 | J187: Roof finishes: Timber/ply decking, zinc | K187: 199 | L187: 340
E188: 47/6H8 Roof finishes: Timber/ply decking, lead | F188: 1457 | G188: 2.03 | H188: Roof | I188: 47/6H8 | J188: Roof finishes: Timber/ply decking, lead | K188: 199 | L188: 340
E189: 47/6N2 Roof finishes: Timber/ply decking, bitumen felt or the like | F189: 1458 | G189: 2.03 | H189: Roof | I189: 47/6N2 | J189: Roof finishes: Timber/ply decking, bitumen felt or the like | K189: 199 | L189: 340
E190: 47/6S4 Roof finishes: Timber/ply decking, asphalt | F190: 1459 | G190: 2.03 | H190: Roof | I190: 47/6S4 | J190: Roof finishes: Timber/ply decking, asphalt | K190: 199 | L190: 340
E191: 47/7 Roof finishes: Patent glazing | F191: 1460 | G191: 2.03 | H191: Roof | I191: 47/7 | J191: Roof finishes: Patent glazing | K191: 199 | L191: 340
E192: 47/7H Roof finishes: Patent glazing, metal | F192: 1461 | G192: 2.03 | H192: Roof | I192: 47/7H | J192: Roof finishes: Patent glazing, metal | K192: 199 | L192: 340
E193: 47/7H2 Roof finishes: Patent glazing, steel | F193: 1462 | G193: 2.03 | H193: Roof | I193: 47/7H2 | J193: Roof finishes: Patent glazing, steel | K193: 199 | L193: 340
E194: 47/7H4 Roof finishes: Patent glazing, aluminium | F194: 1463 | G194: 2.03 | H194: Roof | I194: 47/7H4 | J194: Roof finishes: Patent glazing, aluminium | K194: 199 | L194: 340
E195: 47/8 Roof finishes: Special feature - Cupola, dome or the like | F195: 1464 | G195: 2.03 | H195: Roof | I195: 47/8 | J195: Roof finishes: Special feature - Cupola, dome or the like | K195: 199 | L195: 340
E196: 47/81 Roof finishes: Special features - Roof garden, planting, etc | F196: 1465 | G196: 2.03 | H196: Roof | I196: 47/81 | J196: Roof finishes: Special features - Roof garden, planting, etc | K196: 199 | L196: 340
F197: 0 | G197: 2.04 | H197: Stairs | K197: 204 | L197: 350
E198: 24/ O Glass | F198: 2588 | G198: 2.04 | H198: Stairs | I198: 24/ O | J198: Glass | K198: 204 | L198: 350
E199: 24/ Q Concrete | F199: 1170 | G199: 2.04 | H199: Stairs | I199: 24/ Q | J199: Concrete | K199: 204 | L199: 350
E200: 24/0 Undefined | F200: 1171 | G200: 2.04 | H200: Stairs | I200: 24/0 | J200: Undefined | K200: 204 | L200: 350
E201: 24/1 Straight flight | F201: 1172 | G201: 2.04 | H201: Stairs | I201: 24/1 | J201: Straight flight | K201: 204 | L201: 350
E202: 24/1E Straight flight, stone | F202: 2597 | G202: 2.04 | H202: Stairs | I202: 24/1E | J202: Straight flight, stone | K202: 204 | L202: 350
E203: 24/1F2 Straight flight, precast concrete | F203: 1173 | G203: 2.04 | H203: Stairs | I203: 24/1F2 | J203: Straight flight, precast concrete | K203: 204 | L203: 350
E204: 24/1H2 Straight flight, steel | F204: 1174 | G204: 2.04 | H204: Stairs | I204: 24/1H2 | J204: Straight flight, steel | K204: 204 | L204: 350
E205: 24/1I2 Straight flight, softwood | F205: 1175 | G205: 2.04 | H205: Stairs | I205: 24/1I2 | J205: Straight flight, softwood | K205: 204 | L205: 350
E206: 24/1I3 Straight flight, hardwood | F206: 1176 | G206: 2.04 | H206: Stairs | I206: 24/1I3 | J206: Straight flight, hardwood | K206: 204 | L206: 350
E207: 24/1O Straight flight, glass | F207: 2589 | G207: 2.04 | H207: Stairs | I207: 24/1O | J207: Straight flight, glass | K207: 204 | L207: 350
E208: 24/1Q Straight flight, concrete | F208: 1177 | G208: 2.04 | H208: Stairs | I208: 24/1Q | J208: Straight flight, concrete | K208: 204 | L208: 350
... 515 more rows

Sheet Lookup (hidden)
F1: select | G1: GeneralCode.id, Code, GeneralCode.Description
F2: from | G2: GeneralCode
F3: inner join GeneralCodeType on GeneralCodeType.id = CodeTypeID
F4: where | G4: TableType = '15'
F5: order by Code
C7: Code type 02 | E7: =COUNTA(ClientCode) -> 44
A8: Client Type | C8: id | D8: Code | E8: Description
A10: =D10&" "&E10 -> 1 Public | C10: 18 | D10: 1 | E10: Public
A11: 11 Central government | C11: 19 | D11: 11 | E11: Central government
A12: 111 Home Office | C12: 20 | D12: 111 | E12: Home Office
A13: 112 Ministry of Defence | C13: 21 | D13: 112 | E13: Ministry of Defence
A14: 113 Property Services Agency | C14: 22 | D14: 113 | E14: Property Services Agency
A15: 114 PSA repayment client | C15: 23 | D15: 114 | E15: PSA repayment client
A16: 12 Local authority | C16: 24 | D16: 12 | E16: Local authority
A17: 121 County authority | C17: 25 | D17: 121 | E17: County authority
A18: 123 District authority | C18: 26 | D18: 123 | E18: District authority
A19: 125 Police authority | C19: 27 | D19: 125 | E19: Police authority
A20: 126 Fire authority | C20: 3635 | D20: 126 | E20: Fire authority
A21: 128 Private developer for local authority | C21: 28 | D21: 128 | E21: Private developer for local authority
A22: 13 Development authority | C22: 29 | D22: 13 | E22: Development authority
A23: 131 Regional development authority | C23: 30 | D23: 131 | E23: Regional development authority
A24: 132 Local development authority | C24: 31 | D24: 132 | E24: Local development authority
A25: 14 Health authority | C25: 32 | D25: 14 | E25: Health authority
A26: 141 Regional health authority | C26: 33 | D26: 141 | E26: Regional health authority
A27: 142 Area health authority | C27: 34 | D27: 142 | E27: Area health authority
A28: 143 District health authority | C28: 35 | D28: 143 | E28: District health authority
A29: 144 NHS hospital trust | C29: 36 | D29: 144 | E29: NHS hospital trust
A30: 15 Nationalised industry etc | C30: 37 | D30: 15 | E30: Nationalised industry etc
A31: 151 Post Office | C31: 38 | D31: 151 | E31: Post Office
A32: 152 British Telecom | C32: 39 | D32: 152 | E32: British Telecom
A33: 153 National Coal Board | C33: 40 | D33: 153 | E33: National Coal Board
A34: 16 Education other than local authority | C34: 41 | D34: 16 | E34: Education other than local authority
A35: 161 University | C35: 42 | D35: 161 | E35: University
A36: 17 Housing association (public contract) | C36: 43 | D36: 17 | E36: Housing association (public contract)
A37: 2 Private | C37: 44 | D37: 2 | E37: Private
A38: 21 Private owner occupier | C38: 45 | D38: 21 | E38: Private owner occupier
A39: 211 Manufacturing owner occupier | C39: 46 | D39: 211 | E39: Manufacturing owner occupier
A40: 212 Commercial owner occupier | C40: 47 | D40: 212 | E40: Commercial owner occupier
A41: 213 Individual owner occupier | C41: 48 | D41: 213 | E41: Individual owner occupier
A42: 214 Club/society owner occupier | C42: 49 | D42: 214 | E42: Club/society owner occupier
A43: 215 Utility owner occupier | C43: 50 | D43: 215 | E43: Utility owner occupier
A44: 23 Developer | C44: 51 | D44: 23 | E44: Developer
A45: 232 Pension fund developer | C45: 52 | D45: 232 | E45: Pension fund developer
A46: 24 Private health | C46: 53 | D46: 24 | E46: Private health
A47: 241 Private hospital | C47: 3379 | D47: 241 | E47: Private hospital
A48: 243 Private developer for health authority | C48: 3380 | D48: 243 | E48: Private developer for health authority
A49: 26 Private education | C49: 54 | D49: 26 | E49: Private education
A50: 27 Housing association (private contract) | C50: 55 | D50: 27 | E50: Housing association (private contract)
A51: 28 Charity | C51: 56 | D51: 28 | E51: Charity
A52: 29 Charities, trusts, etc - for a third party | C52: 57 | D52: 29 | E52: Charities, trusts, etc - for a third party
A53: 31 Owner occupier - no details | C53: 58 | D53: 31 | E53: Owner occupier - no details
C57: Code type 01 | E57: =COUNTA(TypeOfWorkCode) -> 19
A58: Type of work | C58: id | D58: Code | E58: Description
A60: =E60 -> Demolition | C60: 3879 | D60: 0 | E60: Demolition
A61: New build | C61: 1 | D61: 1 | E61: New build
A62: New build excluding substructures | C62: 2 | D62: 12 | E62: New build excluding substructures
A63: New build, not complete building | C63: 3 | D63: 13 | E63: New build, not complete building
A64: New build excluding services | C64: 4 | D64: 14 | E64: New build excluding services
A65: New build behind retained facade | C65: 5 | D65: 15 | E65: New build behind retained facade
A66: Horizontal extension | C66: 6 | D66: 2 | E66: Horizontal extension
A67: Horizontal extension excluding substructure | C67: 7 | D67: 22 | E67: Horizontal extension excluding substructure
A68: Horizontal extension, not complete building | C68: 8 | D68: 23 | E68: Horizontal extension, not complete building
A69: Vertical extension | C69: 9 | D69: 3 | E69: Vertical extension
A70: Basement to existing building | C70: 10 | D70: 31 | E70: Basement to existing building
A71: Shell only | C71: 11 | D71: 4 | E71: Shell only
A72: Shell only horizontal extension | C72: 12 | D72: 41 | E72: Shell only horizontal extension
A73: Fitting out new building | C73: 13 | D73: 5 | E73: Fitting out new building
A74: Rehabilitation/Conversion | C74: 14 | D74: 6 | E74: Rehabilitation/Conversion
A75: Re-roofing only | C75: 15 | D75: 65 | E75: Re-roofing only
A76: Fitting out existing building | C76: 16 | D76: 7 | E76: Fitting out existing building
A77: Relocation of building on new substructure | C77: 3490 | D77: 8 | E77: Relocation of building on new substructure
A78: External works only (including enabling work) | C78: 17 | D78: 9 | E78: External works only (including enabling work)
C82: Code type SitePitch | E82: =COUNTA(SitePitchCode) -> 4
A83: Site Pitch | C83: id | D83: Code | E83: Description
A85: =E85 -> Level site | C85: 669 | D85: 11 | E85: Level site
A86: =E86 -> Gently sloping site (ne 1 in 30) | C86: 670 | D86: 12 | E86: Gently sloping site (ne 1 in 30)
A87: =E87 -> Steeply sloping site (over 1 in 30) | C87: 671 | D87: 13 | E87: Steeply sloping site (over 1 in 30)
A88: =E88 -> Undulating site | C88: 672 | D88: 14 | E88: Undulating site
C92: Code type SiteGround | E92: =COUNTA(SiteGroundCode) -> 5
A93: Site Ground | C93: id | D93: Code | E93: Description
A95: =E95 -> Ground conditions good | C95: 673 | D95: 21 | E95: Ground conditions good
A96: =E96 -> Ground conditions moderate | C96: 674 | D96: 22 | E96: Ground conditions moderate
A97: =E97 -> Ground conditions bad | C97: 675 | D97: 23 | E97: Ground conditions bad
A98: =E98 -> Previously consolidated ground | C98: 676 | D98: 24 | E98: Previously consolidated ground
A99: =E99 -> Previously made up ground | C99: 677 | D99: 25 | E99: Previously made up ground
C103: Code type SiteWater
A104: Site Water | C104: id | D104: Code | E104: Description
A106: =E106 -> Excavation generally above water table | C106: 678 | D106: 31 | E106: Excavation generally above water table
A107: =E107 -> Excavation generally below water table | C107: 679 | D107: 32 | E107: Excavation generally below water table
A108: =E108 -> Excavation in running water | C108: 680 | D108: 33 | E108: Excavation in running water
C112: Code type SitePrevious
A113: Site Previous Use | C113: id | D113: Code | E113: Description
A115: =E115 -> Green field site | C115: 681 | D115: 41 | E115: Green field site
A116: =E116 -> Demolition required as part of this contract | C116: 682 | D116: 42 | E116: Demolition required as part of this contract
A117: =E117 -> Demolition carried out in previous contract | C117: 683 | D117: 43 | E117: Demolition carried out in previous contract
A118: =E118 -> Infill site ie between existing buildings | C118: 684 | D118: 44 | E118: Infill site ie between existing buildings
A119: =E119 -> Within existing building | C119: 685 | D119: 45 | E119: Within existing building
C123: Code type SiteSpace
A124: Site Working Space | C124: id | D124: Code | E124: Description
A126: =E126 -> Working space unrestricted | C126: 686 | D126: 51 | E126: Working space unrestricted
A127: =E127 -> Working space restricted | C127: 687 | D127: 52 | E127: Working space restricted
A128: =E128 -> Working space highly restricted | C128: 688 | D128: 53 | E128: Working space highly restricted
C132: Code type SiteAccess
A133: Site Access | C133: id | D133: Code | E133: Description
A135: =E135 -> Site access unrestricted | C135: 689 | D135: 61 | E135: Site access unrestricted
A136: =E136 -> Site access restricted | C136: 690 | D136: 62 | E136: Site access restricted
A137: =E137 -> Site access highly restricted | C137: 691 | D137: 63 | E137: Site access highly restricted
C139: Code type SiteDivided
A140: Site Divided | C140: id | D140: Code | E140: Description
A142: =E142 -> Site divided in more than one location | C142: 692 | D142: 71 | E142: Site divided in more than one location
C146: Code type 09
A147: Tender Amended | C147: id | D147: Code | E147: Description
A149: =E149 -> Second lowest tender accepted | C149: 809 | D149: 1 | E149: Second lowest tender accepted
A150: Second lowest tender accepted,PC sums revised | C150: 810 | D150: 11 | E150: Second lowest tender accepted,PC sums revised
A151: Second lowest tender accepted,Reductions bill | C151: 811 | D151: 12 | E151: Second lowest tender accepted,Reductions bill
A152: Second lowest tender accepted, Addendum bill | C152: 812 | D152: 13 | E152: Second lowest tender accepted, Addendum bill
A153: Second lowest tender accepted, Altered | C153: 813 | D153: 17 | E153: Second lowest tender accepted, Altered
A154: Lowest tender not accepted, see MC text | C154: 814 | D154: 18 | E154: Lowest tender not accepted, see MC text
A155: PC/Provisional Sums revised | C155: 815 | D155: 21 | E155: PC/Provisional Sums revised
A156: Bill of reductions | C156: 816 | D156: 22 | E156: Bill of reductions
A157: Addendum Bill | C157: 817 | D157: 23 | E157: Addendum Bill
A158: Altered by negotiation | C158: 818 | D158: 24 | E158: Altered by negotiation
A159: Adjusted for arithmetic errors | C159: 819 | D159: 25 | E159: Adjusted for arithmetic errors
A160: Building redesigned | C160: 820 | D160: 26 | E160: Building redesigned
A161: Altered - no details | C161: 821 | D161: 27 | E161: Altered - no details
A162: Altered - see market conditions text | C162: 822 | D162: 28 | E162: Altered - see market conditions text
A163: Contract sum excludes fees and charges | C163: 1870 | D163: 29 | E163: Contract sum excludes fees and charges
A164: Target Price | C164: 3481 | D164: 31 | E164: Target Price
A165: Adjusted Target Price | C165: 3482 | D165: 32 | E165: Adjusted Target Price
A166: See market conditions text | C166: 823 | D166: 88 | E166: See market conditions text
A167: Analysis based on FINAL ACCOUNT | C167: 824 | D167: 9 | E167: Analysis based on FINAL ACCOUNT
C171: Code type 14
A172: Selection of contractor | C172: id | D172: Code | E172: Description
A174: =E174 -> Competitive | C174: 1008 | D174: 1 | E174: Competitive
A175: Open competition | C175: 1009 | D175: 11 | E175: Open competition
A176: Selected competition | C176: 1010 | D176: 12 | E176: Selected competition
A177: Two stage tendering | C177: 1011 | D177: 13 | E177: Two stage tendering
A178: Competitive - partnering | C178: 3449 | D178: 14 | E178: Competitive - partnering
A179: Competitive - Framework | C179: 3455 | D179: 15 | E179: Competitive - Framework
A180: Competitive - Framework Target Cost | C180: 3456 | D180: 16 | E180: Competitive - Framework Target Cost
A181: Negotiated | C181: 1012 | D181: 2 | E181: Negotiated
A182: Negotiated - partnering | C182: 3450 | D182: 21 | E182: Negotiated - partnering
A183: Negotiated with Prime Contractor | C183: 3453 | D183: 22 | E183: Negotiated with Prime Contractor
A184: Negotiated - Framework | C184: 3454 | D184: 23 | E184: Negotiated - Framework
A185: Negotiated - Framework Target Cost | C185: 3668 | D185: 24 | E185: Negotiated - Framework Target Cost
A186: Serial contract | C186: 1013 | D186: 3 | E186: Serial contract
A187: Continuation | C187: 1014 | D187: 4 | E187: Continuation
A188: Management contract | C188: 1015 | D188: 5 | E188: Management contract
A189: Design and build | C189: 1016 | D189: 6 | E189: Design and build
A190: Design and build - competitive | C190: 1017 | D190: 61 | E190: Design and build - competitive
A191: Design and build - negotiated | C191: 1018 | D191: 62 | E191: Design and build - negotiated
A192: Design and build - partnering | C192: 3451 | D192: 63 | E192: Design and build - partnering
A193: Design and build for PPP/PFI | C193: 2590 | D193: 68 | E193: Design and build for PPP/PFI
A194: Construction management | C194: 1019 | D194: 7 | E194: Construction management
A195: System build | C195: 1020 | D195: 8 | E195: System build
C199: Code type 12 | E199: =COUNTA(ContractCode) -> 119
A200: Contract | C200: id | D200: Code | E200: Description
A202: =D202&" "&E202 -> 1 JCT contract | C202: 970 | D202: 1 | E202: JCT contract
A203: 1 1 JCT contract 1963 edition | C203: 971 | D203: 1 1 | E203: JCT contract 1963 edition
A204: 1 2 JCT contract 1980 edition | C204: 972 | D204: 1 2 | E204: JCT contract 1980 edition
A205: 1 4 JCT contract 1998 edition | C205: 1850 | D205: 1 4 | E205: JCT contract 1998 edition
A206: 1 6 JCT contract 2005 edition | C206: 3269 | D206: 1 6 | E206: JCT contract 2005 edition
A207: 1 8 JCT Contract 2011 edition | C207: 3547 | D207: 1 8 | E207: JCT Contract 2011 edition
A208: 11 JCT local authority contract | C208: 973 | D208: 11 | E208: JCT local authority contract
A209: 111 JCT local authority contract 1963 edition | C209: 974 | D209: 111 | E209: JCT local authority contract 1963 edition
A210: 112 JCT local authority contract 1980 edition | C210: 975 | D210: 112 | E210: JCT local authority contract 1980 edition
A211: 113 JCT LA 1980 contractors designed portion sup | C211: 976 | D211: 113 | E211: JCT LA 1980 contractors designed portion sup
A212: 114 JCT local authority contract 1998 edition | C212: 1851 | D212: 114 | E212: JCT local authority contract 1998 edition
A213: 115 JCT LA 1998 contractors designed portion sup | C213: 1852 | D213: 115 | E213: JCT LA 1998 contractors designed portion sup
A214: 12 JCT private contract | C214: 977 | D214: 12 | E214: JCT private contract
A215: 121 JCT private contract 1963 edition | C215: 978 | D215: 121 | E215: JCT private contract 1963 edition
A216: 122 JCT private contract 1980 edition | C216: 979 | D216: 122 | E216: JCT private contract 1980 edition
A217: 123 JCT Private 1980 contractors designed portion | C217: 980 | D217: 123 | E217: JCT Private 1980 contractors designed portion
A218: 124 JCT private contract 1998 edition | C218: 1853 | D218: 124 | E218: JCT private contract 1998 edition
A219: 125 JCT Private 1998 contractors designed portion | C219: 1854 | D219: 125 | E219: JCT Private 1998 contractors designed portion
A220: 1B6 JCT standard building contract 2005 edition | C220: 3270 | D220: 1B6 | E220: JCT standard building contract 2005 edition
A221: 1B8 JCT Standard Building Contract 2011 edition | C221: 3545 | D221: 1B8 | E221: JCT Standard Building Contract 2011 edition
A222: 1B9 JCT Standard Building Contract 2016 edition | C222: 3836 | D222: 1B9 | E222: JCT Standard Building Contract 2016 edition
A223: 1C JCT Management Contract | C223: 981 | D223: 1C | E223: JCT Management Contract
A224: 1C2 JCT Management Contract 1987 | C224: 1855 | D224: 1C2 | E224: JCT Management Contract 1987
A225: 1C4 JCT Management Contract 1998 | C225: 1856 | D225: 1C4 | E225: JCT Management Contract 1998
A226: 1C6 JCT management building contract 2005 edition | C226: 3271 | D226: 1C6 | E226: JCT management building contract 2005 edition
A227: 1C7 JCT construction management agreement 2005 | C227: 3272 | D227: 1C7 | E227: JCT construction management agreement 2005
A228: 1C8 Construction management trade contract 2011 edition | C228: 3562 | D228: 1C8 | E228: Construction management trade contract 2011 edition
A229: 1C9 JCT Construction Management Contract 2016 edition | C229: 3837 | D229: 1C9 | E229: JCT Construction Management Contract 2016 edition
A230: 1D JCT with Contractor's Design | C230: 982 | D230: 1D | E230: JCT with Contractor's Design
A231: 1D2 JCT with Contractor's Design 1981 | C231: 1857 | D231: 1D2 | E231: JCT with Contractor's Design 1981
A232: 1D4 JCT with Contractor's Design 1998 | C232: 1858 | D232: 1D4 | E232: JCT with Contractor's Design 1998
A233: 1D6 JCT design and build contract 2005 edition | C233: 3273 | D233: 1D6 | E233: JCT design and build contract 2005 edition
A234: =D234&" "&E234 -> 1D8 JCT Design and Build Contract 2011 edition | C234: 3546 | D234: 1D8 | E234: JCT Design and Build Contract 2011 edition
A235: 1D9 JCT Design and Build Contract 2016 edition | C235: 3833 | D235: 1D9 | E235: JCT Design and Build Contract 2016 edition
A236: 1F6 JCT framework agreement 2005 edition | C236: 3274 | D236: 1F6 | E236: JCT framework agreement 2005 edition
A237: 1F8 Framework agreement 2011 edition | C237: 3563 | D237: 1F8 | E237: Framework agreement 2011 edition
A238: 1H6 JCT housing grant works contract 2005 edition | C238: 3275 | D238: 1H6 | E238: JCT housing grant works contract 2005 edition
A239: 1I JCT Intermediate form of contract | C239: 983 | D239: 1I | E239: JCT Intermediate form of contract
A240: 1I2 JCT Intermediate form of contract 1984 | C240: 1859 | D240: 1I2 | E240: JCT Intermediate form of contract 1984
A241: 1I4 JCT Intermediate form of contract 1998 | C241: 1860 | D241: 1I4 | E241: JCT Intermediate form of contract 1998
A242: 1I6 JCT intermediate building contract 2005 | C242: 3276 | D242: 1I6 | E242: JCT intermediate building contract 2005
A243: 1I7 JCT intermediate with contractors design 2005 | C243: 3288 | D243: 1I7 | E243: JCT intermediate with contractors design 2005
A244: 1I8 JCT Intermediate Building Contract 2011 edition | C244: 3549 | D244: 1I8 | E244: JCT Intermediate Building Contract 2011 edition
... 432 more rows
